{"text_format":"3","workbook":"xlsx","n_sheets":3,"sheets":["נתוני מפת הדרכים","מפת דרכים גמישה","אודות"],"not_rendered":{"defined_names":5},"read":"whole","date_system":"1900"}

{"sheet":"נתוני מפת הדרכים","index":0,"n_rows":13,"n_cols":7,"rows_kept":13,"merged":[[12,1,12,4]]}
["צור מפת דרכים גמישה על-ידי הזנת אבני דרך או פעילויות חשובות בטבלה 'נתוני מפת הדרכים' בגליון עבודה זה.\nהכותרת של גליון עבודה זה מופיעה בתא B1. \nמידע אודות אופן השימוש בגליון עבודה זה, כולל הוראות לקוראי מסך נמצא בגליון העבודה 'אודות'.\nהמשך לנווט במורד העמודה A לקבלת הוראות נוספות.","נתוני ציר זמן גמיש"]
["כותרות הטבלה מופיעות בתאים B2 עד E2. השתמש במסנני כותרות כדי למיין את הטבלה ולחפש פריטים ספציפיים.\n'מפת דרכים גמישה' פועלת בצורה הטובה ביותר כאשר ממיינים את הטבלה בסדר עולה לפי עדיפות, ולאחר מכן לפי אבן דרך או פעילות.\nהנתונים לדוגמה מופיעים בטבלה 'נתוני מפת הדרכים' בתאים B3 עד E12. \nלאחר השלמת אבן דרך או פעילות, עדכן את שדה התוצאה המתאים כדי להציג את התוצאות בגליון העבודה 'מפת דרכים גמישה'. הזן \"ללא שינוי\" כדי לסמן אבני דרך חסרות השפעה.\nהמשך לתא A13 לקבלת ההוראה הבאה.\n","יעד","אבן דרך או פעילות","עדיפות","תוצאה",null,"<-- מיין את הטבלה לפי עדיפות ואבן דרך או פעילות, בסדר עולה"]
[null,"נוכחי","פעילות 1\nבניית אב-טיפוס","1 - גבוה",null,null,"<-- הוסף תוצאה עבור כל אבן דרך שהושלמה. הזן \"ללא שינוי\" כדי לסמן אבני דרך חסרות השפעה."]
[null,"טווח קצר","פעילות 2\nאב-טיפוס להדגמה","1 - גבוה"]
[null,"נוכחי","פעילות 6","1 - גבוה"]
[null,"בעתיד","פעילות 7\nפיתוח במיקור חוץ של יישום השלב הראשון","1 - גבוה"]
[null,"הושלם","פעילות 9\nשלב אחד אושר","1 - גבוה","הקטן ב- 10%"]
[null,"בעתיד","פעילות 10","2 - בינוני"]
[null,"טווח קצר","פעילות 8","2 - בינוני"]
[null,"הושלם","פעילות 3","3 - נמוך","ללא שינוי"]
[null,"בעתיד","פעילות 4","3 - נמוך"]
[null,"נוכחי","פעילות 5","3 - נמוך"]
["הוסף פריטים חדשים על-ידי הוספת שורות חדשות לטבלה מעל לשורה זו.\nזוהי ההוראה האחרונה בגליון עבודה זה.","הוסף פריטים חדשים על-ידי הוספת שורות חדשות מעל לשורה זו"]

{"sheet":"מפת דרכים גמישה","index":1,"n_rows":100,"n_cols":8,"rows_kept":100}
["מפת דרכים גמישה המציגה אבני דרך ופעילויות מגליון העבודה 'נתוני מפת הדרכים' נמצאת בגליון עבודה זה. \nהכותרת נמצאת בתא B1. \nתוצאות המכילות את צירוף המילים \"ללא שינוי\" מסומנות בכתום בהיר, rgb(255, 230, 210)‎.\nאבני דרך או פעילויות שהושלמו מסומנות בירוק בהיר, rgb(237,251,219)‎.","מפת דרכים גמישה"]
["כותרות התרשים נמצאות בתאים B2,‏ D2,‏ F2 ו- H2. ואלה הן: 'הושלם', 'נוכחי', 'טווח קצר' ו'בעתיד'. שנה כותרות אלה כדי לשנות את ערכי בחירת היעד בטבלה 'נתוני מפת הדרכים' בגליון העבודה 'נתוני מפת הדרכים'.\nתאים B3 עד H20 מכילים את אבני הדרך והפעילויות עבור הכותרות בשורה זו. \nאבני דרך ופעילויות נוצרות בגליון העבודה 'נתוני מפת הדרכים'.\nאין לשנות או למחוק ערכים בגליון עבודה זה. עדכן את הטבלה 'נתוני מפת הדרכים' בגליון העבודה 'נתוני מפת הדרכים' כדי לעדכן תוכן בגליון עבודה זה.\nזוהי ההוראה האחרונה בגליון עבודה זה.","הושלם",null,"נוכחי",null,"טווח קצר",null,"בעתיד"]
[null,{"$f":"IFERROR(INDEX(פעילות,SMALL(IF(יעד=$B$2,ROW(פעילות)-MIN(ROW(פעילות))+1),ROWS($B$3:B3)))&\" \"&CHAR(10)&(INDEX(תוצאה,SMALL(IF(יעד=$B$2,ROW(תוצאה)-MIN(ROW(תוצאה))+1),ROWS($B$3:B3))))&CHAR(10),\"\")","v":"פעילות 9\nשלב אחד אושר \nהקטן ב- 10%\n"},null,{"$f":"IFERROR(INDEX(פעילות,SMALL(IF(יעד=$D$2,ROW(פעילות)-MIN(ROW(פעילות))+1),ROWS($B$3:B3)))&CHAR(10),\"\")","v":"פעילות 1\nבניית אב-טיפוס\n"},null,{"$f":"IFERROR(INDEX(פעילות,SMALL(IF(יעד=$F$2,ROW(פעילות)-MIN(ROW(פעילות))+1),ROWS($B$3:B3)))&CHAR(10),\"\")","v":"פעילות 2\nאב-טיפוס להדגמה\n"},null,{"$f":"IFERROR(INDEX(פעילות,SMALL(IF(יעד=$H$2,ROW(פעילות)-MIN(ROW(פעילות))+1),ROWS($B$3:B3)))&CHAR(10),\"\")","v":"פעילות 7\nפיתוח במיקור חוץ של יישום השלב הראשון\n"}]
[null,{"$f":"IFERROR(INDEX(פעילות,SMALL(IF(יעד=$B$2,ROW(פעילות)-MIN(ROW(פעילות))+1),ROWS($B$3:B4)))&\" \"&CHAR(10)&(INDEX(תוצאה,SMALL(IF(יעד=$B$2,ROW(תוצאה)-MIN(ROW(תוצאה))+1),ROWS($B$3:B4))))&CHAR(10),\"\")","v":"פעילות 3 \nללא שינוי\n"},null,{"$f":"IFERROR(INDEX(פעילות,SMALL(IF(יעד=$D$2,ROW(פעילות)-MIN(ROW(פעילות))+1),ROWS($B$3:B4)))&CHAR(10),\"\")","v":"פעילות 6\n"},null,{"$f":"IFERROR(INDEX(פעילות,SMALL(IF(יעד=$F$2,ROW(פעילות)-MIN(ROW(פעילות))+1),ROWS($B$3:B4)))&CHAR(10),\"\")","v":"פעילות 8\n"},null,{"$f":"IFERROR(INDEX(פעילות,SMALL(IF(יעד=$H$2,ROW(פעילות)-MIN(ROW(פעילות))+1),ROWS($B$3:B4)))&CHAR(10),\"\")","v":"פעילות 10\n"}]
[null,{"$f":"IFERROR(INDEX(פעילות,SMALL(IF(יעד=$B$2,ROW(פעילות)-MIN(ROW(פעילות))+1),ROWS($B$3:B5)))&\" \"&CHAR(10)&(INDEX(תוצאה,SMALL(IF(יעד=$B$2,ROW(תוצאה)-MIN(ROW(תוצאה))+1),ROWS($B$3:B5))))&CHAR(10),\"\")","v":""},null,{"$f":"IFERROR(INDEX(פעילות,SMALL(IF(יעד=$D$2,ROW(פעילות)-MIN(ROW(פעילות))+1),ROWS($B$3:B5)))&CHAR(10),\"\")","v":"פעילות 5\n"},null,{"$f":"IFERROR(INDEX(פעילות,SMALL(IF(יעד=$F$2,ROW(פעילות)-MIN(ROW(פעילות))+1),ROWS($B$3:B5)))&CHAR(10),\"\")","v":""},null,{"$f":"IFERROR(INDEX(פעילות,SMALL(IF(יעד=$H$2,ROW(פעילות)-MIN(ROW(פעילות))+1),ROWS($B$3:B5)))&CHAR(10),\"\")","v":"פעילות 4\n"}]
[null,{"$f":"IFERROR(INDEX(פעילות,SMALL(IF(יעד=$B$2,ROW(פעילות)-MIN(ROW(פעילות))+1),ROWS($B$3:B6)))&\" \"&CHAR(10)&(INDEX(תוצאה,SMALL(IF(יעד=$B$2,ROW(תוצאה)-MIN(ROW(תוצאה))+1),ROWS($B$3:B6))))&CHAR(10),\"\")","v":""},null,{"$f":"IFERROR(INDEX(פעילות,SMALL(IF(יעד=$D$2,ROW(פעילות)-MIN(ROW(פעילות))+1),ROWS($B$3:B6)))&CHAR(10),\"\")","v":""},null,{"$f":"IFERROR(INDEX(פעילות,SMALL(IF(יעד=$F$2,ROW(פעילות)-MIN(ROW(פעילות))+1),ROWS($B$3:B6)))&CHAR(10),\"\")","v":""},null,{"$f":"IFERROR(INDEX(פעילות,SMALL(IF(יעד=$H$2,ROW(פעילות)-MIN(ROW(פעילות))+1),ROWS($B$3:B6)))&CHAR(10),\"\")","v":""}]
[null,{"$f":"IFERROR(INDEX(פעילות,SMALL(IF(יעד=$B$2,ROW(פעילות)-MIN(ROW(פעילות))+1),ROWS($B$3:B7)))&\" \"&CHAR(10)&(INDEX(תוצאה,SMALL(IF(יעד=$B$2,ROW(תוצאה)-MIN(ROW(תוצאה))+1),ROWS($B$3:B7))))&CHAR(10),\"\")","v":""},null,{"$f":"IFERROR(INDEX(פעילות,SMALL(IF(יעד=$D$2,ROW(פעילות)-MIN(ROW(פעילות))+1),ROWS($B$3:B7)))&CHAR(10),\"\")","v":""},null,{"$f":"IFERROR(INDEX(פעילות,SMALL(IF(יעד=$F$2,ROW(פעילות)-MIN(ROW(פעילות))+1),ROWS($B$3:B7)))&CHAR(10),\"\")","v":""},null,{"$f":"IFERROR(INDEX(פעילות,SMALL(IF(יעד=$H$2,ROW(פעילות)-MIN(ROW(פעילות))+1),ROWS($B$3:B7)))&CHAR(10),\"\")","v":""}]
[null,{"$f":"IFERROR(INDEX(פעילות,SMALL(IF(יעד=$B$2,ROW(פעילות)-MIN(ROW(פעילות))+1),ROWS($B$3:B8)))&\" \"&CHAR(10)&(INDEX(תוצאה,SMALL(IF(יעד=$B$2,ROW(תוצאה)-MIN(ROW(תוצאה))+1),ROWS($B$3:B8))))&CHAR(10),\"\")","v":""},null,{"$f":"IFERROR(INDEX(פעילות,SMALL(IF(יעד=$D$2,ROW(פעילות)-MIN(ROW(פעילות))+1),ROWS($B$3:B8)))&CHAR(10),\"\")","v":""},null,{"$f":"IFERROR(INDEX(פעילות,SMALL(IF(יעד=$F$2,ROW(פעילות)-MIN(ROW(פעילות))+1),ROWS($B$3:B8)))&CHAR(10),\"\")","v":""},null,{"$f":"IFERROR(INDEX(פעילות,SMALL(IF(יעד=$H$2,ROW(פעילות)-MIN(ROW(פעילות))+1),ROWS($B$3:B8)))&CHAR(10),\"\")","v":""}]
[null,{"$f":"IFERROR(INDEX(פעילות,SMALL(IF(יעד=$B$2,ROW(פעילות)-MIN(ROW(פעילות))+1),ROWS($B$3:B9)))&\" \"&CHAR(10)&(INDEX(תוצאה,SMALL(IF(יעד=$B$2,ROW(תוצאה)-MIN(ROW(תוצאה))+1),ROWS($B$3:B9))))&CHAR(10),\"\")","v":""},null,{"$f":"IFERROR(INDEX(פעילות,SMALL(IF(יעד=$D$2,ROW(פעילות)-MIN(ROW(פעילות))+1),ROWS($B$3:B9)))&CHAR(10),\"\")","v":""},null,{"$f":"IFERROR(INDEX(פעילות,SMALL(IF(יעד=$F$2,ROW(פעילות)-MIN(ROW(פעילות))+1),ROWS($B$3:B9)))&CHAR(10),\"\")","v":""},null,{"$f":"IFERROR(INDEX(פעילות,SMALL(IF(יעד=$H$2,ROW(פעילות)-MIN(ROW(פעילות))+1),ROWS($B$3:B9)))&CHAR(10),\"\")","v":""}]
[null,{"$f":"IFERROR(INDEX(פעילות,SMALL(IF(יעד=$B$2,ROW(פעילות)-MIN(ROW(פעילות))+1),ROWS($B$3:B10)))&\" \"&CHAR(10)&(INDEX(תוצאה,SMALL(IF(יעד=$B$2,ROW(תוצאה)-MIN(ROW(תוצאה))+1),ROWS($B$3:B10))))&CHAR(10),\"\")","v":""},null,{"$f":"IFERROR(INDEX(פעילות,SMALL(IF(יעד=$D$2,ROW(פעילות)-MIN(ROW(פעילות))+1),ROWS($B$3:B10)))&CHAR(10),\"\")","v":""},null,{"$f":"IFERROR(INDEX(פעילות,SMALL(IF(יעד=$F$2,ROW(פעילות)-MIN(ROW(פעילות))+1),ROWS($B$3:B10)))&CHAR(10),\"\")","v":""},null,{"$f":"IFERROR(INDEX(פעילות,SMALL(IF(יעד=$H$2,ROW(פעילות)-MIN(ROW(פעילות))+1),ROWS($B$3:B10)))&CHAR(10),\"\")","v":""}]
[null,{"$f":"IFERROR(INDEX(פעילות,SMALL(IF(יעד=$B$2,ROW(פעילות)-MIN(ROW(פעילות))+1),ROWS($B$3:B11)))&\" \"&CHAR(10)&(INDEX(תוצאה,SMALL(IF(יעד=$B$2,ROW(תוצאה)-MIN(ROW(תוצאה))+1),ROWS($B$3:B11))))&CHAR(10),\"\")","v":""},null,{"$f":"IFERROR(INDEX(פעילות,SMALL(IF(יעד=$D$2,ROW(פעילות)-MIN(ROW(פעילות))+1),ROWS($B$3:B11)))&CHAR(10),\"\")","v":""},null,{"$f":"IFERROR(INDEX(פעילות,SMALL(IF(יעד=$F$2,ROW(פעילות)-MIN(ROW(פעילות))+1),ROWS($B$3:B11)))&CHAR(10),\"\")","v":""},null,{"$f":"IFERROR(INDEX(פעילות,SMALL(IF(יעד=$H$2,ROW(פעילות)-MIN(ROW(פעילות))+1),ROWS($B$3:B11)))&CHAR(10),\"\")","v":""}]
[null,{"$f":"IFERROR(INDEX(פעילות,SMALL(IF(יעד=$B$2,ROW(פעילות)-MIN(ROW(פעילות))+1),ROWS($B$3:B12)))&\" \"&CHAR(10)&(INDEX(תוצאה,SMALL(IF(יעד=$B$2,ROW(תוצאה)-MIN(ROW(תוצאה))+1),ROWS($B$3:B12))))&CHAR(10),\"\")","v":""},null,{"$f":"IFERROR(INDEX(פעילות,SMALL(IF(יעד=$D$2,ROW(פעילות)-MIN(ROW(פעילות))+1),ROWS($B$3:B12)))&CHAR(10),\"\")","v":""},null,{"$f":"IFERROR(INDEX(פעילות,SMALL(IF(יעד=$F$2,ROW(פעילות)-MIN(ROW(פעילות))+1),ROWS($B$3:B12)))&CHAR(10),\"\")","v":""},null,{"$f":"IFERROR(INDEX(פעילות,SMALL(IF(יעד=$H$2,ROW(פעילות)-MIN(ROW(פעילות))+1),ROWS($B$3:B12)))&CHAR(10),\"\")","v":""}]
[null,{"$f":"IFERROR(INDEX(פעילות,SMALL(IF(יעד=$B$2,ROW(פעילות)-MIN(ROW(פעילות))+1),ROWS($B$3:B13)))&\" \"&CHAR(10)&(INDEX(תוצאה,SMALL(IF(יעד=$B$2,ROW(תוצאה)-MIN(ROW(תוצאה))+1),ROWS($B$3:B13))))&CHAR(10),\"\")","v":""},null,{"$f":"IFERROR(INDEX(פעילות,SMALL(IF(יעד=$D$2,ROW(פעילות)-MIN(ROW(פעילות))+1),ROWS($B$3:B13)))&CHAR(10),\"\")","v":""},null,{"$f":"IFERROR(INDEX(פעילות,SMALL(IF(יעד=$F$2,ROW(פעילות)-MIN(ROW(פעילות))+1),ROWS($B$3:B13)))&CHAR(10),\"\")","v":""},null,{"$f":"IFERROR(INDEX(פעילות,SMALL(IF(יעד=$H$2,ROW(פעילות)-MIN(ROW(פעילות))+1),ROWS($B$3:B13)))&CHAR(10),\"\")","v":""}]
[null,{"$f":"IFERROR(INDEX(פעילות,SMALL(IF(יעד=$B$2,ROW(פעילות)-MIN(ROW(פעילות))+1),ROWS($B$3:B14)))&\" \"&CHAR(10)&(INDEX(תוצאה,SMALL(IF(יעד=$B$2,ROW(תוצאה)-MIN(ROW(תוצאה))+1),ROWS($B$3:B14))))&CHAR(10),\"\")","v":""},null,{"$f":"IFERROR(INDEX(פעילות,SMALL(IF(יעד=$D$2,ROW(פעילות)-MIN(ROW(פעילות))+1),ROWS($B$3:B14)))&CHAR(10),\"\")","v":""},null,{"$f":"IFERROR(INDEX(פעילות,SMALL(IF(יעד=$F$2,ROW(פעילות)-MIN(ROW(פעילות))+1),ROWS($B$3:B14)))&CHAR(10),\"\")","v":""},null,{"$f":"IFERROR(INDEX(פעילות,SMALL(IF(יעד=$H$2,ROW(פעילות)-MIN(ROW(פעילות))+1),ROWS($B$3:B14)))&CHAR(10),\"\")","v":""}]
[null,{"$f":"IFERROR(INDEX(פעילות,SMALL(IF(יעד=$B$2,ROW(פעילות)-MIN(ROW(פעילות))+1),ROWS($B$3:B15)))&\" \"&CHAR(10)&(INDEX(תוצאה,SMALL(IF(יעד=$B$2,ROW(תוצאה)-MIN(ROW(תוצאה))+1),ROWS($B$3:B15))))&CHAR(10),\"\")","v":""},null,{"$f":"IFERROR(INDEX(פעילות,SMALL(IF(יעד=$D$2,ROW(פעילות)-MIN(ROW(פעילות))+1),ROWS($B$3:B15)))&CHAR(10),\"\")","v":""},null,{"$f":"IFERROR(INDEX(פעילות,SMALL(IF(יעד=$F$2,ROW(פעילות)-MIN(ROW(פעילות))+1),ROWS($B$3:B15)))&CHAR(10),\"\")","v":""},null,{"$f":"IFERROR(INDEX(פעילות,SMALL(IF(יעד=$H$2,ROW(פעילות)-MIN(ROW(פעילות))+1),ROWS($B$3:B15)))&CHAR(10),\"\")","v":""}]
[null,{"$f":"IFERROR(INDEX(פעילות,SMALL(IF(יעד=$B$2,ROW(פעילות)-MIN(ROW(פעילות))+1),ROWS($B$3:B16)))&\" \"&CHAR(10)&(INDEX(תוצאה,SMALL(IF(יעד=$B$2,ROW(תוצאה)-MIN(ROW(תוצאה))+1),ROWS($B$3:B16))))&CHAR(10),\"\")","v":""},null,{"$f":"IFERROR(INDEX(פעילות,SMALL(IF(יעד=$D$2,ROW(פעילות)-MIN(ROW(פעילות))+1),ROWS($B$3:B16)))&CHAR(10),\"\")","v":""},null,{"$f":"IFERROR(INDEX(פעילות,SMALL(IF(יעד=$F$2,ROW(פעילות)-MIN(ROW(פעילות))+1),ROWS($B$3:B16)))&CHAR(10),\"\")","v":""},null,{"$f":"IFERROR(INDEX(פעילות,SMALL(IF(יעד=$H$2,ROW(פעילות)-MIN(ROW(פעילות))+1),ROWS($B$3:B16)))&CHAR(10),\"\")","v":""}]
[null,{"$f":"IFERROR(INDEX(פעילות,SMALL(IF(יעד=$B$2,ROW(פעילות)-MIN(ROW(פעילות))+1),ROWS($B$3:B17)))&\" \"&CHAR(10)&(INDEX(תוצאה,SMALL(IF(יעד=$B$2,ROW(תוצאה)-MIN(ROW(תוצאה))+1),ROWS($B$3:B17))))&CHAR(10),\"\")","v":""},null,{"$f":"IFERROR(INDEX(פעילות,SMALL(IF(יעד=$D$2,ROW(פעילות)-MIN(ROW(פעילות))+1),ROWS($B$3:B17)))&CHAR(10),\"\")","v":""},null,{"$f":"IFERROR(INDEX(פעילות,SMALL(IF(יעד=$F$2,ROW(פעילות)-MIN(ROW(פעילות))+1),ROWS($B$3:B17)))&CHAR(10),\"\")","v":""},null,{"$f":"IFERROR(INDEX(פעילות,SMALL(IF(יעד=$H$2,ROW(פעילות)-MIN(ROW(פעילות))+1),ROWS($B$3:B17)))&CHAR(10),\"\")","v":""}]
[null,{"$f":"IFERROR(INDEX(פעילות,SMALL(IF(יעד=$B$2,ROW(פעילות)-MIN(ROW(פעילות))+1),ROWS($B$3:B18)))&\" \"&CHAR(10)&(INDEX(תוצאה,SMALL(IF(יעד=$B$2,ROW(תוצאה)-MIN(ROW(תוצאה))+1),ROWS($B$3:B18))))&CHAR(10),\"\")","v":""},null,{"$f":"IFERROR(INDEX(פעילות,SMALL(IF(יעד=$D$2,ROW(פעילות)-MIN(ROW(פעילות))+1),ROWS($B$3:B18)))&CHAR(10),\"\")","v":""},null,{"$f":"IFERROR(INDEX(פעילות,SMALL(IF(יעד=$F$2,ROW(פעילות)-MIN(ROW(פעילות))+1),ROWS($B$3:B18)))&CHAR(10),\"\")","v":""},null,{"$f":"IFERROR(INDEX(פעילות,SMALL(IF(יעד=$H$2,ROW(פעילות)-MIN(ROW(פעילות))+1),ROWS($B$3:B18)))&CHAR(10),\"\")","v":""}]
[null,{"$f":"IFERROR(INDEX(פעילות,SMALL(IF(יעד=$B$2,ROW(פעילות)-MIN(ROW(פעילות))+1),ROWS($B$3:B19)))&\" \"&CHAR(10)&(INDEX(תוצאה,SMALL(IF(יעד=$B$2,ROW(תוצאה)-MIN(ROW(תוצאה))+1),ROWS($B$3:B19))))&CHAR(10),\"\")","v":""},null,{"$f":"IFERROR(INDEX(פעילות,SMALL(IF(יעד=$D$2,ROW(פעילות)-MIN(ROW(פעילות))+1),ROWS($B$3:B19)))&CHAR(10),\"\")","v":""},null,{"$f":"IFERROR(INDEX(פעילות,SMALL(IF(יעד=$F$2,ROW(פעילות)-MIN(ROW(פעילות))+1),ROWS($B$3:B19)))&CHAR(10),\"\")","v":""},null,{"$f":"IFERROR(INDEX(פעילות,SMALL(IF(יעד=$H$2,ROW(פעילות)-MIN(ROW(פעילות))+1),ROWS($B$3:B19)))&CHAR(10),\"\")","v":""}]
[null,{"$f":"IFERROR(INDEX(פעילות,SMALL(IF(יעד=$B$2,ROW(פעילות)-MIN(ROW(פעילות))+1),ROWS($B$3:B20)))&\" \"&CHAR(10)&(INDEX(תוצאה,SMALL(IF(יעד=$B$2,ROW(תוצאה)-MIN(ROW(תוצאה))+1),ROWS($B$3:B20))))&CHAR(10),\"\")","v":""},null,{"$f":"IFERROR(INDEX(פעילות,SMALL(IF(יעד=$D$2,ROW(פעילות)-MIN(ROW(פעילות))+1),ROWS($B$3:B20)))&CHAR(10),\"\")","v":""},null,{"$f":"IFERROR(INDEX(פעילות,SMALL(IF(יעד=$F$2,ROW(פעילות)-MIN(ROW(פעילות))+1),ROWS($B$3:B20)))&CHAR(10),\"\")","v":""},null,{"$f":"IFERROR(INDEX(פעילות,SMALL(IF(יעד=$H$2,ROW(פעילות)-MIN(ROW(פעילות))+1),ROWS($B$3:B20)))&CHAR(10),\"\")","v":""}]
[null,{"$f":"IFERROR(INDEX(פעילות,SMALL(IF(יעד=$B$2,ROW(פעילות)-MIN(ROW(פעילות))+1),ROWS($B$3:B21)))&\" \"&CHAR(10)&(INDEX(תוצאה,SMALL(IF(יעד=$B$2,ROW(תוצאה)-MIN(ROW(תוצאה))+1),ROWS($B$3:B21))))&CHAR(10),\"\")","v":""},null,{"$f":"IFERROR(INDEX(פעילות,SMALL(IF(יעד=$D$2,ROW(פעילות)-MIN(ROW(פעילות))+1),ROWS($B$3:B21)))&CHAR(10),\"\")","v":""},null,{"$f":"IFERROR(INDEX(פעילות,SMALL(IF(יעד=$F$2,ROW(פעילות)-MIN(ROW(פעילות))+1),ROWS($B$3:B21)))&CHAR(10),\"\")","v":""},null,{"$f":"IFERROR(INDEX(פעילות,SMALL(IF(יעד=$H$2,ROW(פעילות)-MIN(ROW(פעילות))+1),ROWS($B$3:B21)))&CHAR(10),\"\")","v":""}]
[null,{"$f":"IFERROR(INDEX(פעילות,SMALL(IF(יעד=$B$2,ROW(פעילות)-MIN(ROW(פעילות))+1),ROWS($B$3:B22)))&\" \"&CHAR(10)&(INDEX(תוצאה,SMALL(IF(יעד=$B$2,ROW(תוצאה)-MIN(ROW(תוצאה))+1),ROWS($B$3:B22))))&CHAR(10),\"\")","v":""},null,{"$f":"IFERROR(INDEX(פעילות,SMALL(IF(יעד=$D$2,ROW(פעילות)-MIN(ROW(פעילות))+1),ROWS($B$3:B22)))&CHAR(10),\"\")","v":""},null,{"$f":"IFERROR(INDEX(פעילות,SMALL(IF(יעד=$F$2,ROW(פעילות)-MIN(ROW(פעילות))+1),ROWS($B$3:B22)))&CHAR(10),\"\")","v":""},null,{"$f":"IFERROR(INDEX(פעילות,SMALL(IF(יעד=$H$2,ROW(פעילות)-MIN(ROW(פעילות))+1),ROWS($B$3:B22)))&CHAR(10),\"\")","v":""}]
[null,{"$f":"IFERROR(INDEX(פעילות,SMALL(IF(יעד=$B$2,ROW(פעילות)-MIN(ROW(פעילות))+1),ROWS($B$3:B23)))&\" \"&CHAR(10)&(INDEX(תוצאה,SMALL(IF(יעד=$B$2,ROW(תוצאה)-MIN(ROW(תוצאה))+1),ROWS($B$3:B23))))&CHAR(10),\"\")","v":""},null,{"$f":"IFERROR(INDEX(פעילות,SMALL(IF(יעד=$D$2,ROW(פעילות)-MIN(ROW(פעילות))+1),ROWS($B$3:B23)))&CHAR(10),\"\")","v":""},null,{"$f":"IFERROR(INDEX(פעילות,SMALL(IF(יעד=$F$2,ROW(פעילות)-MIN(ROW(פעילות))+1),ROWS($B$3:B23)))&CHAR(10),\"\")","v":""},null,{"$f":"IFERROR(INDEX(פעילות,SMALL(IF(יעד=$H$2,ROW(פעילות)-MIN(ROW(פעילות))+1),ROWS($B$3:B23)))&CHAR(10),\"\")","v":""}]
[null,{"$f":"IFERROR(INDEX(פעילות,SMALL(IF(יעד=$B$2,ROW(פעילות)-MIN(ROW(פעילות))+1),ROWS($B$3:B24)))&\" \"&CHAR(10)&(INDEX(תוצאה,SMALL(IF(יעד=$B$2,ROW(תוצאה)-MIN(ROW(תוצאה))+1),ROWS($B$3:B24))))&CHAR(10),\"\")","v":""},null,{"$f":"IFERROR(INDEX(פעילות,SMALL(IF(יעד=$D$2,ROW(פעילות)-MIN(ROW(פעילות))+1),ROWS($B$3:B24)))&CHAR(10),\"\")","v":""},null,{"$f":"IFERROR(INDEX(פעילות,SMALL(IF(יעד=$F$2,ROW(פעילות)-MIN(ROW(פעילות))+1),ROWS($B$3:B24)))&CHAR(10),\"\")","v":""},null,{"$f":"IFERROR(INDEX(פעילות,SMALL(IF(יעד=$H$2,ROW(פעילות)-MIN(ROW(פעילות))+1),ROWS($B$3:B24)))&CHAR(10),\"\")","v":""}]
[null,{"$f":"IFERROR(INDEX(פעילות,SMALL(IF(יעד=$B$2,ROW(פעילות)-MIN(ROW(פעילות))+1),ROWS($B$3:B25)))&\" \"&CHAR(10)&(INDEX(תוצאה,SMALL(IF(יעד=$B$2,ROW(תוצאה)-MIN(ROW(תוצאה))+1),ROWS($B$3:B25))))&CHAR(10),\"\")","v":""},null,{"$f":"IFERROR(INDEX(פעילות,SMALL(IF(יעד=$D$2,ROW(פעילות)-MIN(ROW(פעילות))+1),ROWS($B$3:B25)))&CHAR(10),\"\")","v":""},null,{"$f":"IFERROR(INDEX(פעילות,SMALL(IF(יעד=$F$2,ROW(פעילות)-MIN(ROW(פעילות))+1),ROWS($B$3:B25)))&CHAR(10),\"\")","v":""},null,{"$f":"IFERROR(INDEX(פעילות,SMALL(IF(יעד=$H$2,ROW(פעילות)-MIN(ROW(פעילות))+1),ROWS($B$3:B25)))&CHAR(10),\"\")","v":""}]
[null,{"$f":"IFERROR(INDEX(פעילות,SMALL(IF(יעד=$B$2,ROW(פעילות)-MIN(ROW(פעילות))+1),ROWS($B$3:B26)))&\" \"&CHAR(10)&(INDEX(תוצאה,SMALL(IF(יעד=$B$2,ROW(תוצאה)-MIN(ROW(תוצאה))+1),ROWS($B$3:B26))))&CHAR(10),\"\")","v":""},null,{"$f":"IFERROR(INDEX(פעילות,SMALL(IF(יעד=$D$2,ROW(פעילות)-MIN(ROW(פעילות))+1),ROWS($B$3:B26)))&CHAR(10),\"\")","v":""},null,{"$f":"IFERROR(INDEX(פעילות,SMALL(IF(יעד=$F$2,ROW(פעילות)-MIN(ROW(פעילות))+1),ROWS($B$3:B26)))&CHAR(10),\"\")","v":""},null,{"$f":"IFERROR(INDEX(פעילות,SMALL(IF(יעד=$H$2,ROW(פעילות)-MIN(ROW(פעילות))+1),ROWS($B$3:B26)))&CHAR(10),\"\")","v":""}]
[null,{"$f":"IFERROR(INDEX(פעילות,SMALL(IF(יעד=$B$2,ROW(פעילות)-MIN(ROW(פעילות))+1),ROWS($B$3:B27)))&\" \"&CHAR(10)&(INDEX(תוצאה,SMALL(IF(יעד=$B$2,ROW(תוצאה)-MIN(ROW(תוצאה))+1),ROWS($B$3:B27))))&CHAR(10),\"\")","v":""},null,{"$f":"IFERROR(INDEX(פעילות,SMALL(IF(יעד=$D$2,ROW(פעילות)-MIN(ROW(פעילות))+1),ROWS($B$3:B27)))&CHAR(10),\"\")","v":""},null,{"$f":"IFERROR(INDEX(פעילות,SMALL(IF(יעד=$F$2,ROW(פעילות)-MIN(ROW(פעילות))+1),ROWS($B$3:B27)))&CHAR(10),\"\")","v":""},null,{"$f":"IFERROR(INDEX(פעילות,SMALL(IF(יעד=$H$2,ROW(פעילות)-MIN(ROW(פעילות))+1),ROWS($B$3:B27)))&CHAR(10),\"\")","v":""}]
[null,{"$f":"IFERROR(INDEX(פעילות,SMALL(IF(יעד=$B$2,ROW(פעילות)-MIN(ROW(פעילות))+1),ROWS($B$3:B28)))&\" \"&CHAR(10)&(INDEX(תוצאה,SMALL(IF(יעד=$B$2,ROW(תוצאה)-MIN(ROW(תוצאה))+1),ROWS($B$3:B28))))&CHAR(10),\"\")","v":""},null,{"$f":"IFERROR(INDEX(פעילות,SMALL(IF(יעד=$D$2,ROW(פעילות)-MIN(ROW(פעילות))+1),ROWS($B$3:B28)))&CHAR(10),\"\")","v":""},null,{"$f":"IFERROR(INDEX(פעילות,SMALL(IF(יעד=$F$2,ROW(פעילות)-MIN(ROW(פעילות))+1),ROWS($B$3:B28)))&CHAR(10),\"\")","v":""},null,{"$f":"IFERROR(INDEX(פעילות,SMALL(IF(יעד=$H$2,ROW(פעילות)-MIN(ROW(פעילות))+1),ROWS($B$3:B28)))&CHAR(10),\"\")","v":""}]
[null,{"$f":"IFERROR(INDEX(פעילות,SMALL(IF(יעד=$B$2,ROW(פעילות)-MIN(ROW(פעילות))+1),ROWS($B$3:B29)))&\" \"&CHAR(10)&(INDEX(תוצאה,SMALL(IF(יעד=$B$2,ROW(תוצאה)-MIN(ROW(תוצאה))+1),ROWS($B$3:B29))))&CHAR(10),\"\")","v":""},null,{"$f":"IFERROR(INDEX(פעילות,SMALL(IF(יעד=$D$2,ROW(פעילות)-MIN(ROW(פעילות))+1),ROWS($B$3:B29)))&CHAR(10),\"\")","v":""},null,{"$f":"IFERROR(INDEX(פעילות,SMALL(IF(יעד=$F$2,ROW(פעילות)-MIN(ROW(פעילות))+1),ROWS($B$3:B29)))&CHAR(10),\"\")","v":""},null,{"$f":"IFERROR(INDEX(פעילות,SMALL(IF(יעד=$H$2,ROW(פעילות)-MIN(ROW(פעילות))+1),ROWS($B$3:B29)))&CHAR(10),\"\")","v":""}]
[null,{"$f":"IFERROR(INDEX(פעילות,SMALL(IF(יעד=$B$2,ROW(פעילות)-MIN(ROW(פעילות))+1),ROWS($B$3:B30)))&\" \"&CHAR(10)&(INDEX(תוצאה,SMALL(IF(יעד=$B$2,ROW(תוצאה)-MIN(ROW(תוצאה))+1),ROWS($B$3:B30))))&CHAR(10),\"\")","v":""},null,{"$f":"IFERROR(INDEX(פעילות,SMALL(IF(יעד=$D$2,ROW(פעילות)-MIN(ROW(פעילות))+1),ROWS($B$3:B30)))&CHAR(10),\"\")","v":""},null,{"$f":"IFERROR(INDEX(פעילות,SMALL(IF(יעד=$F$2,ROW(פעילות)-MIN(ROW(פעילות))+1),ROWS($B$3:B30)))&CHAR(10),\"\")","v":""},null,{"$f":"IFERROR(INDEX(פעילות,SMALL(IF(יעד=$H$2,ROW(פעילות)-MIN(ROW(פעילות))+1),ROWS($B$3:B30)))&CHAR(10),\"\")","v":""}]
[null,{"$f":"IFERROR(INDEX(פעילות,SMALL(IF(יעד=$B$2,ROW(פעילות)-MIN(ROW(פעילות))+1),ROWS($B$3:B31)))&\" \"&CHAR(10)&(INDEX(תוצאה,SMALL(IF(יעד=$B$2,ROW(תוצאה)-MIN(ROW(תוצאה))+1),ROWS($B$3:B31))))&CHAR(10),\"\")","v":""},null,{"$f":"IFERROR(INDEX(פעילות,SMALL(IF(יעד=$D$2,ROW(פעילות)-MIN(ROW(פעילות))+1),ROWS($B$3:B31)))&CHAR(10),\"\")","v":""},null,{"$f":"IFERROR(INDEX(פעילות,SMALL(IF(יעד=$F$2,ROW(פעילות)-MIN(ROW(פעילות))+1),ROWS($B$3:B31)))&CHAR(10),\"\")","v":""},null,{"$f":"IFERROR(INDEX(פעילות,SMALL(IF(יעד=$H$2,ROW(פעילות)-MIN(ROW(פעילות))+1),ROWS($B$3:B31)))&CHAR(10),\"\")","v":""}]
[null,{"$f":"IFERROR(INDEX(פעילות,SMALL(IF(יעד=$B$2,ROW(פעילות)-MIN(ROW(פעילות))+1),ROWS($B$3:B32)))&\" \"&CHAR(10)&(INDEX(תוצאה,SMALL(IF(יעד=$B$2,ROW(תוצאה)-MIN(ROW(תוצאה))+1),ROWS($B$3:B32))))&CHAR(10),\"\")","v":""},null,{"$f":"IFERROR(INDEX(פעילות,SMALL(IF(יעד=$D$2,ROW(פעילות)-MIN(ROW(פעילות))+1),ROWS($B$3:B32)))&CHAR(10),\"\")","v":""},null,{"$f":"IFERROR(INDEX(פעילות,SMALL(IF(יעד=$F$2,ROW(פעילות)-MIN(ROW(פעילות))+1),ROWS($B$3:B32)))&CHAR(10),\"\")","v":""},null,{"$f":"IFERROR(INDEX(פעילות,SMALL(IF(יעד=$H$2,ROW(פעילות)-MIN(ROW(פעילות))+1),ROWS($B$3:B32)))&CHAR(10),\"\")","v":""}]
[null,{"$f":"IFERROR(INDEX(פעילות,SMALL(IF(יעד=$B$2,ROW(פעילות)-MIN(ROW(פעילות))+1),ROWS($B$3:B33)))&\" \"&CHAR(10)&(INDEX(תוצאה,SMALL(IF(יעד=$B$2,ROW(תוצאה)-MIN(ROW(תוצאה))+1),ROWS($B$3:B33))))&CHAR(10),\"\")","v":""},null,{"$f":"IFERROR(INDEX(פעילות,SMALL(IF(יעד=$D$2,ROW(פעילות)-MIN(ROW(פעילות))+1),ROWS($B$3:B33)))&CHAR(10),\"\")","v":""},null,{"$f":"IFERROR(INDEX(פעילות,SMALL(IF(יעד=$F$2,ROW(פעילות)-MIN(ROW(פעילות))+1),ROWS($B$3:B33)))&CHAR(10),\"\")","v":""},null,{"$f":"IFERROR(INDEX(פעילות,SMALL(IF(יעד=$H$2,ROW(פעילות)-MIN(ROW(פעילות))+1),ROWS($B$3:B33)))&CHAR(10),\"\")","v":""}]
[null,{"$f":"IFERROR(INDEX(פעילות,SMALL(IF(יעד=$B$2,ROW(פעילות)-MIN(ROW(פעילות))+1),ROWS($B$3:B34)))&\" \"&CHAR(10)&(INDEX(תוצאה,SMALL(IF(יעד=$B$2,ROW(תוצאה)-MIN(ROW(תוצאה))+1),ROWS($B$3:B34))))&CHAR(10),\"\")","v":""},null,{"$f":"IFERROR(INDEX(פעילות,SMALL(IF(יעד=$D$2,ROW(פעילות)-MIN(ROW(פעילות))+1),ROWS($B$3:B34)))&CHAR(10),\"\")","v":""},null,{"$f":"IFERROR(INDEX(פעילות,SMALL(IF(יעד=$F$2,ROW(פעילות)-MIN(ROW(פעילות))+1),ROWS($B$3:B34)))&CHAR(10),\"\")","v":""},null,{"$f":"IFERROR(INDEX(פעילות,SMALL(IF(יעד=$H$2,ROW(פעילות)-MIN(ROW(פעילות))+1),ROWS($B$3:B34)))&CHAR(10),\"\")","v":""}]
[null,{"$f":"IFERROR(INDEX(פעילות,SMALL(IF(יעד=$B$2,ROW(פעילות)-MIN(ROW(פעילות))+1),ROWS($B$3:B35)))&\" \"&CHAR(10)&(INDEX(תוצאה,SMALL(IF(יעד=$B$2,ROW(תוצאה)-MIN(ROW(תוצאה))+1),ROWS($B$3:B35))))&CHAR(10),\"\")","v":""},null,{"$f":"IFERROR(INDEX(פעילות,SMALL(IF(יעד=$D$2,ROW(פעילות)-MIN(ROW(פעילות))+1),ROWS($B$3:B35)))&CHAR(10),\"\")","v":""},null,{"$f":"IFERROR(INDEX(פעילות,SMALL(IF(יעד=$F$2,ROW(פעילות)-MIN(ROW(פעילות))+1),ROWS($B$3:B35)))&CHAR(10),\"\")","v":""},null,{"$f":"IFERROR(INDEX(פעילות,SMALL(IF(יעד=$H$2,ROW(פעילות)-MIN(ROW(פעילות))+1),ROWS($B$3:B35)))&CHAR(10),\"\")","v":""}]
[null,{"$f":"IFERROR(INDEX(פעילות,SMALL(IF(יעד=$B$2,ROW(פעילות)-MIN(ROW(פעילות))+1),ROWS($B$3:B36)))&\" \"&CHAR(10)&(INDEX(תוצאה,SMALL(IF(יעד=$B$2,ROW(תוצאה)-MIN(ROW(תוצאה))+1),ROWS($B$3:B36))))&CHAR(10),\"\")","v":""},null,{"$f":"IFERROR(INDEX(פעילות,SMALL(IF(יעד=$D$2,ROW(פעילות)-MIN(ROW(פעילות))+1),ROWS($B$3:B36)))&CHAR(10),\"\")","v":""},null,{"$f":"IFERROR(INDEX(פעילות,SMALL(IF(יעד=$F$2,ROW(פעילות)-MIN(ROW(פעילות))+1),ROWS($B$3:B36)))&CHAR(10),\"\")","v":""},null,{"$f":"IFERROR(INDEX(פעילות,SMALL(IF(יעד=$H$2,ROW(פעילות)-MIN(ROW(פעילות))+1),ROWS($B$3:B36)))&CHAR(10),\"\")","v":""}]
[null,{"$f":"IFERROR(INDEX(פעילות,SMALL(IF(יעד=$B$2,ROW(פעילות)-MIN(ROW(פעילות))+1),ROWS($B$3:B37)))&\" \"&CHAR(10)&(INDEX(תוצאה,SMALL(IF(יעד=$B$2,ROW(תוצאה)-MIN(ROW(תוצאה))+1),ROWS($B$3:B37))))&CHAR(10),\"\")","v":""},null,{"$f":"IFERROR(INDEX(פעילות,SMALL(IF(יעד=$D$2,ROW(פעילות)-MIN(ROW(פעילות))+1),ROWS($B$3:B37)))&CHAR(10),\"\")","v":""},null,{"$f":"IFERROR(INDEX(פעילות,SMALL(IF(יעד=$F$2,ROW(פעילות)-MIN(ROW(פעילות))+1),ROWS($B$3:B37)))&CHAR(10),\"\")","v":""},null,{"$f":"IFERROR(INDEX(פעילות,SMALL(IF(יעד=$H$2,ROW(פעילות)-MIN(ROW(פעילות))+1),ROWS($B$3:B37)))&CHAR(10),\"\")","v":""}]
[null,{"$f":"IFERROR(INDEX(פעילות,SMALL(IF(יעד=$B$2,ROW(פעילות)-MIN(ROW(פעילות))+1),ROWS($B$3:B38)))&\" \"&CHAR(10)&(INDEX(תוצאה,SMALL(IF(יעד=$B$2,ROW(תוצאה)-MIN(ROW(תוצאה))+1),ROWS($B$3:B38))))&CHAR(10),\"\")","v":""},null,{"$f":"IFERROR(INDEX(פעילות,SMALL(IF(יעד=$D$2,ROW(פעילות)-MIN(ROW(פעילות))+1),ROWS($B$3:B38)))&CHAR(10),\"\")","v":""},null,{"$f":"IFERROR(INDEX(פעילות,SMALL(IF(יעד=$F$2,ROW(פעילות)-MIN(ROW(פעילות))+1),ROWS($B$3:B38)))&CHAR(10),\"\")","v":""},null,{"$f":"IFERROR(INDEX(פעילות,SMALL(IF(יעד=$H$2,ROW(פעילות)-MIN(ROW(פעילות))+1),ROWS($B$3:B38)))&CHAR(10),\"\")","v":""}]
[null,{"$f":"IFERROR(INDEX(פעילות,SMALL(IF(יעד=$B$2,ROW(פעילות)-MIN(ROW(פעילות))+1),ROWS($B$3:B39)))&\" \"&CHAR(10)&(INDEX(תוצאה,SMALL(IF(יעד=$B$2,ROW(תוצאה)-MIN(ROW(תוצאה))+1),ROWS($B$3:B39))))&CHAR(10),\"\")","v":""},null,{"$f":"IFERROR(INDEX(פעילות,SMALL(IF(יעד=$D$2,ROW(פעילות)-MIN(ROW(פעילות))+1),ROWS($B$3:B39)))&CHAR(10),\"\")","v":""},null,{"$f":"IFERROR(INDEX(פעילות,SMALL(IF(יעד=$F$2,ROW(פעילות)-MIN(ROW(פעילות))+1),ROWS($B$3:B39)))&CHAR(10),\"\")","v":""},null,{"$f":"IFERROR(INDEX(פעילות,SMALL(IF(יעד=$H$2,ROW(פעילות)-MIN(ROW(פעילות))+1),ROWS($B$3:B39)))&CHAR(10),\"\")","v":""}]
[null,{"$f":"IFERROR(INDEX(פעילות,SMALL(IF(יעד=$B$2,ROW(פעילות)-MIN(ROW(פעילות))+1),ROWS($B$3:B40)))&\" \"&CHAR(10)&(INDEX(תוצאה,SMALL(IF(יעד=$B$2,ROW(תוצאה)-MIN(ROW(תוצאה))+1),ROWS($B$3:B40))))&CHAR(10),\"\")","v":""},null,{"$f":"IFERROR(INDEX(פעילות,SMALL(IF(יעד=$D$2,ROW(פעילות)-MIN(ROW(פעילות))+1),ROWS($B$3:B40)))&CHAR(10),\"\")","v":""},null,{"$f":"IFERROR(INDEX(פעילות,SMALL(IF(יעד=$F$2,ROW(פעילות)-MIN(ROW(פעילות))+1),ROWS($B$3:B40)))&CHAR(10),\"\")","v":""},null,{"$f":"IFERROR(INDEX(פעילות,SMALL(IF(יעד=$H$2,ROW(פעילות)-MIN(ROW(פעילות))+1),ROWS($B$3:B40)))&CHAR(10),\"\")","v":""}]
[null,{"$f":"IFERROR(INDEX(פעילות,SMALL(IF(יעד=$B$2,ROW(פעילות)-MIN(ROW(פעילות))+1),ROWS($B$3:B41)))&\" \"&CHAR(10)&(INDEX(תוצאה,SMALL(IF(יעד=$B$2,ROW(תוצאה)-MIN(ROW(תוצאה))+1),ROWS($B$3:B41))))&CHAR(10),\"\")","v":""},null,{"$f":"IFERROR(INDEX(פעילות,SMALL(IF(יעד=$D$2,ROW(פעילות)-MIN(ROW(פעילות))+1),ROWS($B$3:B41)))&CHAR(10),\"\")","v":""},null,{"$f":"IFERROR(INDEX(פעילות,SMALL(IF(יעד=$F$2,ROW(פעילות)-MIN(ROW(פעילות))+1),ROWS($B$3:B41)))&CHAR(10),\"\")","v":""},null,{"$f":"IFERROR(INDEX(פעילות,SMALL(IF(יעד=$H$2,ROW(פעילות)-MIN(ROW(פעילות))+1),ROWS($B$3:B41)))&CHAR(10),\"\")","v":""}]
[null,{"$f":"IFERROR(INDEX(פעילות,SMALL(IF(יעד=$B$2,ROW(פעילות)-MIN(ROW(פעילות))+1),ROWS($B$3:B42)))&\" \"&CHAR(10)&(INDEX(תוצאה,SMALL(IF(יעד=$B$2,ROW(תוצאה)-MIN(ROW(תוצאה))+1),ROWS($B$3:B42))))&CHAR(10),\"\")","v":""},null,{"$f":"IFERROR(INDEX(פעילות,SMALL(IF(יעד=$D$2,ROW(פעילות)-MIN(ROW(פעילות))+1),ROWS($B$3:B42)))&CHAR(10),\"\")","v":""},null,{"$f":"IFERROR(INDEX(פעילות,SMALL(IF(יעד=$F$2,ROW(פעילות)-MIN(ROW(פעילות))+1),ROWS($B$3:B42)))&CHAR(10),\"\")","v":""},null,{"$f":"IFERROR(INDEX(פעילות,SMALL(IF(יעד=$H$2,ROW(פעילות)-MIN(ROW(פעילות))+1),ROWS($B$3:B42)))&CHAR(10),\"\")","v":""}]
[null,{"$f":"IFERROR(INDEX(פעילות,SMALL(IF(יעד=$B$2,ROW(פעילות)-MIN(ROW(פעילות))+1),ROWS($B$3:B43)))&\" \"&CHAR(10)&(INDEX(תוצאה,SMALL(IF(יעד=$B$2,ROW(תוצאה)-MIN(ROW(תוצאה))+1),ROWS($B$3:B43))))&CHAR(10),\"\")","v":""},null,{"$f":"IFERROR(INDEX(פעילות,SMALL(IF(יעד=$D$2,ROW(פעילות)-MIN(ROW(פעילות))+1),ROWS($B$3:B43)))&CHAR(10),\"\")","v":""},null,{"$f":"IFERROR(INDEX(פעילות,SMALL(IF(יעד=$F$2,ROW(פעילות)-MIN(ROW(פעילות))+1),ROWS($B$3:B43)))&CHAR(10),\"\")","v":""},null,{"$f":"IFERROR(INDEX(פעילות,SMALL(IF(יעד=$H$2,ROW(פעילות)-MIN(ROW(פעילות))+1),ROWS($B$3:B43)))&CHAR(10),\"\")","v":""}]
[null,{"$f":"IFERROR(INDEX(פעילות,SMALL(IF(יעד=$B$2,ROW(פעילות)-MIN(ROW(פעילות))+1),ROWS($B$3:B44)))&\" \"&CHAR(10)&(INDEX(תוצאה,SMALL(IF(יעד=$B$2,ROW(תוצאה)-MIN(ROW(תוצאה))+1),ROWS($B$3:B44))))&CHAR(10),\"\")","v":""},null,{"$f":"IFERROR(INDEX(פעילות,SMALL(IF(יעד=$D$2,ROW(פעילות)-MIN(ROW(פעילות))+1),ROWS($B$3:B44)))&CHAR(10),\"\")","v":""},null,{"$f":"IFERROR(INDEX(פעילות,SMALL(IF(יעד=$F$2,ROW(פעילות)-MIN(ROW(פעילות))+1),ROWS($B$3:B44)))&CHAR(10),\"\")","v":""},null,{"$f":"IFERROR(INDEX(פעילות,SMALL(IF(יעד=$H$2,ROW(פעילות)-MIN(ROW(פעילות))+1),ROWS($B$3:B44)))&CHAR(10),\"\")","v":""}]
[null,{"$f":"IFERROR(INDEX(פעילות,SMALL(IF(יעד=$B$2,ROW(פעילות)-MIN(ROW(פעילות))+1),ROWS($B$3:B45)))&\" \"&CHAR(10)&(INDEX(תוצאה,SMALL(IF(יעד=$B$2,ROW(תוצאה)-MIN(ROW(תוצאה))+1),ROWS($B$3:B45))))&CHAR(10),\"\")","v":""},null,{"$f":"IFERROR(INDEX(פעילות,SMALL(IF(יעד=$D$2,ROW(פעילות)-MIN(ROW(פעילות))+1),ROWS($B$3:B45)))&CHAR(10),\"\")","v":""},null,{"$f":"IFERROR(INDEX(פעילות,SMALL(IF(יעד=$F$2,ROW(פעילות)-MIN(ROW(פעילות))+1),ROWS($B$3:B45)))&CHAR(10),\"\")","v":""},null,{"$f":"IFERROR(INDEX(פעילות,SMALL(IF(יעד=$H$2,ROW(פעילות)-MIN(ROW(פעילות))+1),ROWS($B$3:B45)))&CHAR(10),\"\")","v":""}]
[null,{"$f":"IFERROR(INDEX(פעילות,SMALL(IF(יעד=$B$2,ROW(פעילות)-MIN(ROW(פעילות))+1),ROWS($B$3:B46)))&\" \"&CHAR(10)&(INDEX(תוצאה,SMALL(IF(יעד=$B$2,ROW(תוצאה)-MIN(ROW(תוצאה))+1),ROWS($B$3:B46))))&CHAR(10),\"\")","v":""},null,{"$f":"IFERROR(INDEX(פעילות,SMALL(IF(יעד=$D$2,ROW(פעילות)-MIN(ROW(פעילות))+1),ROWS($B$3:B46)))&CHAR(10),\"\")","v":""},null,{"$f":"IFERROR(INDEX(פעילות,SMALL(IF(יעד=$F$2,ROW(פעילות)-MIN(ROW(פעילות))+1),ROWS($B$3:B46)))&CHAR(10),\"\")","v":""},null,{"$f":"IFERROR(INDEX(פעילות,SMALL(IF(יעד=$H$2,ROW(פעילות)-MIN(ROW(פעילות))+1),ROWS($B$3:B46)))&CHAR(10),\"\")","v":""}]
[null,{"$f":"IFERROR(INDEX(פעילות,SMALL(IF(יעד=$B$2,ROW(פעילות)-MIN(ROW(פעילות))+1),ROWS($B$3:B47)))&\" \"&CHAR(10)&(INDEX(תוצאה,SMALL(IF(יעד=$B$2,ROW(תוצאה)-MIN(ROW(תוצאה))+1),ROWS($B$3:B47))))&CHAR(10),\"\")","v":""},null,{"$f":"IFERROR(INDEX(פעילות,SMALL(IF(יעד=$D$2,ROW(פעילות)-MIN(ROW(פעילות))+1),ROWS($B$3:B47)))&CHAR(10),\"\")","v":""},null,{"$f":"IFERROR(INDEX(פעילות,SMALL(IF(יעד=$F$2,ROW(פעילות)-MIN(ROW(פעילות))+1),ROWS($B$3:B47)))&CHAR(10),\"\")","v":""},null,{"$f":"IFERROR(INDEX(פעילות,SMALL(IF(יעד=$H$2,ROW(פעילות)-MIN(ROW(פעילות))+1),ROWS($B$3:B47)))&CHAR(10),\"\")","v":""}]
[null,{"$f":"IFERROR(INDEX(פעילות,SMALL(IF(יעד=$B$2,ROW(פעילות)-MIN(ROW(פעילות))+1),ROWS($B$3:B48)))&\" \"&CHAR(10)&(INDEX(תוצאה,SMALL(IF(יעד=$B$2,ROW(תוצאה)-MIN(ROW(תוצאה))+1),ROWS($B$3:B48))))&CHAR(10),\"\")","v":""},null,{"$f":"IFERROR(INDEX(פעילות,SMALL(IF(יעד=$D$2,ROW(פעילות)-MIN(ROW(פעילות))+1),ROWS($B$3:B48)))&CHAR(10),\"\")","v":""},null,{"$f":"IFERROR(INDEX(פעילות,SMALL(IF(יעד=$F$2,ROW(פעילות)-MIN(ROW(פעילות))+1),ROWS($B$3:B48)))&CHAR(10),\"\")","v":""},null,{"$f":"IFERROR(INDEX(פעילות,SMALL(IF(יעד=$H$2,ROW(פעילות)-MIN(ROW(פעילות))+1),ROWS($B$3:B48)))&CHAR(10),\"\")","v":""}]
[null,{"$f":"IFERROR(INDEX(פעילות,SMALL(IF(יעד=$B$2,ROW(פעילות)-MIN(ROW(פעילות))+1),ROWS($B$3:B49)))&\" \"&CHAR(10)&(INDEX(תוצאה,SMALL(IF(יעד=$B$2,ROW(תוצאה)-MIN(ROW(תוצאה))+1),ROWS($B$3:B49))))&CHAR(10),\"\")","v":""},null,{"$f":"IFERROR(INDEX(פעילות,SMALL(IF(יעד=$D$2,ROW(פעילות)-MIN(ROW(פעילות))+1),ROWS($B$3:B49)))&CHAR(10),\"\")","v":""},null,{"$f":"IFERROR(INDEX(פעילות,SMALL(IF(יעד=$F$2,ROW(פעילות)-MIN(ROW(פעילות))+1),ROWS($B$3:B49)))&CHAR(10),\"\")","v":""},null,{"$f":"IFERROR(INDEX(פעילות,SMALL(IF(יעד=$H$2,ROW(פעילות)-MIN(ROW(פעילות))+1),ROWS($B$3:B49)))&CHAR(10),\"\")","v":""}]
[null,{"$f":"IFERROR(INDEX(פעילות,SMALL(IF(יעד=$B$2,ROW(פעילות)-MIN(ROW(פעילות))+1),ROWS($B$3:B50)))&\" \"&CHAR(10)&(INDEX(תוצאה,SMALL(IF(יעד=$B$2,ROW(תוצאה)-MIN(ROW(תוצאה))+1),ROWS($B$3:B50))))&CHAR(10),\"\")","v":""},null,{"$f":"IFERROR(INDEX(פעילות,SMALL(IF(יעד=$D$2,ROW(פעילות)-MIN(ROW(פעילות))+1),ROWS($B$3:B50)))&CHAR(10),\"\")","v":""},null,{"$f":"IFERROR(INDEX(פעילות,SMALL(IF(יעד=$F$2,ROW(פעילות)-MIN(ROW(פעילות))+1),ROWS($B$3:B50)))&CHAR(10),\"\")","v":""},null,{"$f":"IFERROR(INDEX(פעילות,SMALL(IF(יעד=$H$2,ROW(פעילות)-MIN(ROW(פעילות))+1),ROWS($B$3:B50)))&CHAR(10),\"\")","v":""}]
[null,{"$f":"IFERROR(INDEX(פעילות,SMALL(IF(יעד=$B$2,ROW(פעילות)-MIN(ROW(פעילות))+1),ROWS($B$3:B51)))&\" \"&CHAR(10)&(INDEX(תוצאה,SMALL(IF(יעד=$B$2,ROW(תוצאה)-MIN(ROW(תוצאה))+1),ROWS($B$3:B51))))&CHAR(10),\"\")","v":""},null,{"$f":"IFERROR(INDEX(פעילות,SMALL(IF(יעד=$D$2,ROW(פעילות)-MIN(ROW(פעילות))+1),ROWS($B$3:B51)))&CHAR(10),\"\")","v":""},null,{"$f":"IFERROR(INDEX(פעילות,SMALL(IF(יעד=$F$2,ROW(פעילות)-MIN(ROW(פעילות))+1),ROWS($B$3:B51)))&CHAR(10),\"\")","v":""},null,{"$f":"IFERROR(INDEX(פעילות,SMALL(IF(יעד=$H$2,ROW(פעילות)-MIN(ROW(פעילות))+1),ROWS($B$3:B51)))&CHAR(10),\"\")","v":""}]
[null,{"$f":"IFERROR(INDEX(פעילות,SMALL(IF(יעד=$B$2,ROW(פעילות)-MIN(ROW(פעילות))+1),ROWS($B$3:B52)))&\" \"&CHAR(10)&(INDEX(תוצאה,SMALL(IF(יעד=$B$2,ROW(תוצאה)-MIN(ROW(תוצאה))+1),ROWS($B$3:B52))))&CHAR(10),\"\")","v":""},null,{"$f":"IFERROR(INDEX(פעילות,SMALL(IF(יעד=$D$2,ROW(פעילות)-MIN(ROW(פעילות))+1),ROWS($B$3:B52)))&CHAR(10),\"\")","v":""},null,{"$f":"IFERROR(INDEX(פעילות,SMALL(IF(יעד=$F$2,ROW(פעילות)-MIN(ROW(פעילות))+1),ROWS($B$3:B52)))&CHAR(10),\"\")","v":""},null,{"$f":"IFERROR(INDEX(פעילות,SMALL(IF(יעד=$H$2,ROW(פעילות)-MIN(ROW(פעילות))+1),ROWS($B$3:B52)))&CHAR(10),\"\")","v":""}]
[null,{"$f":"IFERROR(INDEX(פעילות,SMALL(IF(יעד=$B$2,ROW(פעילות)-MIN(ROW(פעילות))+1),ROWS($B$3:B53)))&\" \"&CHAR(10)&(INDEX(תוצאה,SMALL(IF(יעד=$B$2,ROW(תוצאה)-MIN(ROW(תוצאה))+1),ROWS($B$3:B53))))&CHAR(10),\"\")","v":""},null,{"$f":"IFERROR(INDEX(פעילות,SMALL(IF(יעד=$D$2,ROW(פעילות)-MIN(ROW(פעילות))+1),ROWS($B$3:B53)))&CHAR(10),\"\")","v":""},null,{"$f":"IFERROR(INDEX(פעילות,SMALL(IF(יעד=$F$2,ROW(פעילות)-MIN(ROW(פעילות))+1),ROWS($B$3:B53)))&CHAR(10),\"\")","v":""},null,{"$f":"IFERROR(INDEX(פעילות,SMALL(IF(יעד=$H$2,ROW(פעילות)-MIN(ROW(פעילות))+1),ROWS($B$3:B53)))&CHAR(10),\"\")","v":""}]
[null,{"$f":"IFERROR(INDEX(פעילות,SMALL(IF(יעד=$B$2,ROW(פעילות)-MIN(ROW(פעילות))+1),ROWS($B$3:B54)))&\" \"&CHAR(10)&(INDEX(תוצאה,SMALL(IF(יעד=$B$2,ROW(תוצאה)-MIN(ROW(תוצאה))+1),ROWS($B$3:B54))))&CHAR(10),\"\")","v":""},null,{"$f":"IFERROR(INDEX(פעילות,SMALL(IF(יעד=$D$2,ROW(פעילות)-MIN(ROW(פעילות))+1),ROWS($B$3:B54)))&CHAR(10),\"\")","v":""},null,{"$f":"IFERROR(INDEX(פעילות,SMALL(IF(יעד=$F$2,ROW(פעילות)-MIN(ROW(פעילות))+1),ROWS($B$3:B54)))&CHAR(10),\"\")","v":""},null,{"$f":"IFERROR(INDEX(פעילות,SMALL(IF(יעד=$H$2,ROW(פעילות)-MIN(ROW(פעילות))+1),ROWS($B$3:B54)))&CHAR(10),\"\")","v":""}]
[null,{"$f":"IFERROR(INDEX(פעילות,SMALL(IF(יעד=$B$2,ROW(פעילות)-MIN(ROW(פעילות))+1),ROWS($B$3:B55)))&\" \"&CHAR(10)&(INDEX(תוצאה,SMALL(IF(יעד=$B$2,ROW(תוצאה)-MIN(ROW(תוצאה))+1),ROWS($B$3:B55))))&CHAR(10),\"\")","v":""},null,{"$f":"IFERROR(INDEX(פעילות,SMALL(IF(יעד=$D$2,ROW(פעילות)-MIN(ROW(פעילות))+1),ROWS($B$3:B55)))&CHAR(10),\"\")","v":""},null,{"$f":"IFERROR(INDEX(פעילות,SMALL(IF(יעד=$F$2,ROW(פעילות)-MIN(ROW(פעילות))+1),ROWS($B$3:B55)))&CHAR(10),\"\")","v":""},null,{"$f":"IFERROR(INDEX(פעילות,SMALL(IF(יעד=$H$2,ROW(פעילות)-MIN(ROW(פעילות))+1),ROWS($B$3:B55)))&CHAR(10),\"\")","v":""}]
[null,{"$f":"IFERROR(INDEX(פעילות,SMALL(IF(יעד=$B$2,ROW(פעילות)-MIN(ROW(פעילות))+1),ROWS($B$3:B56)))&\" \"&CHAR(10)&(INDEX(תוצאה,SMALL(IF(יעד=$B$2,ROW(תוצאה)-MIN(ROW(תוצאה))+1),ROWS($B$3:B56))))&CHAR(10),\"\")","v":""},null,{"$f":"IFERROR(INDEX(פעילות,SMALL(IF(יעד=$D$2,ROW(פעילות)-MIN(ROW(פעילות))+1),ROWS($B$3:B56)))&CHAR(10),\"\")","v":""},null,{"$f":"IFERROR(INDEX(פעילות,SMALL(IF(יעד=$F$2,ROW(פעילות)-MIN(ROW(פעילות))+1),ROWS($B$3:B56)))&CHAR(10),\"\")","v":""},null,{"$f":"IFERROR(INDEX(פעילות,SMALL(IF(יעד=$H$2,ROW(פעילות)-MIN(ROW(פעילות))+1),ROWS($B$3:B56)))&CHAR(10),\"\")","v":""}]
[null,{"$f":"IFERROR(INDEX(פעילות,SMALL(IF(יעד=$B$2,ROW(פעילות)-MIN(ROW(פעילות))+1),ROWS($B$3:B57)))&\" \"&CHAR(10)&(INDEX(תוצאה,SMALL(IF(יעד=$B$2,ROW(תוצאה)-MIN(ROW(תוצאה))+1),ROWS($B$3:B57))))&CHAR(10),\"\")","v":""},null,{"$f":"IFERROR(INDEX(פעילות,SMALL(IF(יעד=$D$2,ROW(פעילות)-MIN(ROW(פעילות))+1),ROWS($B$3:B57)))&CHAR(10),\"\")","v":""},null,{"$f":"IFERROR(INDEX(פעילות,SMALL(IF(יעד=$F$2,ROW(פעילות)-MIN(ROW(פעילות))+1),ROWS($B$3:B57)))&CHAR(10),\"\")","v":""},null,{"$f":"IFERROR(INDEX(פעילות,SMALL(IF(יעד=$H$2,ROW(פעילות)-MIN(ROW(פעילות))+1),ROWS($B$3:B57)))&CHAR(10),\"\")","v":""}]
[null,{"$f":"IFERROR(INDEX(פעילות,SMALL(IF(יעד=$B$2,ROW(פעילות)-MIN(ROW(פעילות))+1),ROWS($B$3:B58)))&\" \"&CHAR(10)&(INDEX(תוצאה,SMALL(IF(יעד=$B$2,ROW(תוצאה)-MIN(ROW(תוצאה))+1),ROWS($B$3:B58))))&CHAR(10),\"\")","v":""},null,{"$f":"IFERROR(INDEX(פעילות,SMALL(IF(יעד=$D$2,ROW(פעילות)-MIN(ROW(פעילות))+1),ROWS($B$3:B58)))&CHAR(10),\"\")","v":""},null,{"$f":"IFERROR(INDEX(פעילות,SMALL(IF(יעד=$F$2,ROW(פעילות)-MIN(ROW(פעילות))+1),ROWS($B$3:B58)))&CHAR(10),\"\")","v":""},null,{"$f":"IFERROR(INDEX(פעילות,SMALL(IF(יעד=$H$2,ROW(פעילות)-MIN(ROW(פעילות))+1),ROWS($B$3:B58)))&CHAR(10),\"\")","v":""}]
[null,{"$f":"IFERROR(INDEX(פעילות,SMALL(IF(יעד=$B$2,ROW(פעילות)-MIN(ROW(פעילות))+1),ROWS($B$3:B59)))&\" \"&CHAR(10)&(INDEX(תוצאה,SMALL(IF(יעד=$B$2,ROW(תוצאה)-MIN(ROW(תוצאה))+1),ROWS($B$3:B59))))&CHAR(10),\"\")","v":""},null,{"$f":"IFERROR(INDEX(פעילות,SMALL(IF(יעד=$D$2,ROW(פעילות)-MIN(ROW(פעילות))+1),ROWS($B$3:B59)))&CHAR(10),\"\")","v":""},null,{"$f":"IFERROR(INDEX(פעילות,SMALL(IF(יעד=$F$2,ROW(פעילות)-MIN(ROW(פעילות))+1),ROWS($B$3:B59)))&CHAR(10),\"\")","v":""},null,{"$f":"IFERROR(INDEX(פעילות,SMALL(IF(יעד=$H$2,ROW(פעילות)-MIN(ROW(פעילות))+1),ROWS($B$3:B59)))&CHAR(10),\"\")","v":""}]
[null,{"$f":"IFERROR(INDEX(פעילות,SMALL(IF(יעד=$B$2,ROW(פעילות)-MIN(ROW(פעילות))+1),ROWS($B$3:B60)))&\" \"&CHAR(10)&(INDEX(תוצאה,SMALL(IF(יעד=$B$2,ROW(תוצאה)-MIN(ROW(תוצאה))+1),ROWS($B$3:B60))))&CHAR(10),\"\")","v":""},null,{"$f":"IFERROR(INDEX(פעילות,SMALL(IF(יעד=$D$2,ROW(פעילות)-MIN(ROW(פעילות))+1),ROWS($B$3:B60)))&CHAR(10),\"\")","v":""},null,{"$f":"IFERROR(INDEX(פעילות,SMALL(IF(יעד=$F$2,ROW(פעילות)-MIN(ROW(פעילות))+1),ROWS($B$3:B60)))&CHAR(10),\"\")","v":""},null,{"$f":"IFERROR(INDEX(פעילות,SMALL(IF(יעד=$H$2,ROW(פעילות)-MIN(ROW(פעילות))+1),ROWS($B$3:B60)))&CHAR(10),\"\")","v":""}]
[null,{"$f":"IFERROR(INDEX(פעילות,SMALL(IF(יעד=$B$2,ROW(פעילות)-MIN(ROW(פעילות))+1),ROWS($B$3:B61)))&\" \"&CHAR(10)&(INDEX(תוצאה,SMALL(IF(יעד=$B$2,ROW(תוצאה)-MIN(ROW(תוצאה))+1),ROWS($B$3:B61))))&CHAR(10),\"\")","v":""},null,{"$f":"IFERROR(INDEX(פעילות,SMALL(IF(יעד=$D$2,ROW(פעילות)-MIN(ROW(פעילות))+1),ROWS($B$3:B61)))&CHAR(10),\"\")","v":""},null,{"$f":"IFERROR(INDEX(פעילות,SMALL(IF(יעד=$F$2,ROW(פעילות)-MIN(ROW(פעילות))+1),ROWS($B$3:B61)))&CHAR(10),\"\")","v":""},null,{"$f":"IFERROR(INDEX(פעילות,SMALL(IF(יעד=$H$2,ROW(פעילות)-MIN(ROW(פעילות))+1),ROWS($B$3:B61)))&CHAR(10),\"\")","v":""}]
[null,{"$f":"IFERROR(INDEX(פעילות,SMALL(IF(יעד=$B$2,ROW(פעילות)-MIN(ROW(פעילות))+1),ROWS($B$3:B62)))&\" \"&CHAR(10)&(INDEX(תוצאה,SMALL(IF(יעד=$B$2,ROW(תוצאה)-MIN(ROW(תוצאה))+1),ROWS($B$3:B62))))&CHAR(10),\"\")","v":""},null,{"$f":"IFERROR(INDEX(פעילות,SMALL(IF(יעד=$D$2,ROW(פעילות)-MIN(ROW(פעילות))+1),ROWS($B$3:B62)))&CHAR(10),\"\")","v":""},null,{"$f":"IFERROR(INDEX(פעילות,SMALL(IF(יעד=$F$2,ROW(פעילות)-MIN(ROW(פעילות))+1),ROWS($B$3:B62)))&CHAR(10),\"\")","v":""},null,{"$f":"IFERROR(INDEX(פעילות,SMALL(IF(יעד=$H$2,ROW(פעילות)-MIN(ROW(פעילות))+1),ROWS($B$3:B62)))&CHAR(10),\"\")","v":""}]
[null,{"$f":"IFERROR(INDEX(פעילות,SMALL(IF(יעד=$B$2,ROW(פעילות)-MIN(ROW(פעילות))+1),ROWS($B$3:B63)))&\" \"&CHAR(10)&(INDEX(תוצאה,SMALL(IF(יעד=$B$2,ROW(תוצאה)-MIN(ROW(תוצאה))+1),ROWS($B$3:B63))))&CHAR(10),\"\")","v":""},null,{"$f":"IFERROR(INDEX(פעילות,SMALL(IF(יעד=$D$2,ROW(פעילות)-MIN(ROW(פעילות))+1),ROWS($B$3:B63)))&CHAR(10),\"\")","v":""},null,{"$f":"IFERROR(INDEX(פעילות,SMALL(IF(יעד=$F$2,ROW(פעילות)-MIN(ROW(פעילות))+1),ROWS($B$3:B63)))&CHAR(10),\"\")","v":""},null,{"$f":"IFERROR(INDEX(פעילות,SMALL(IF(יעד=$H$2,ROW(פעילות)-MIN(ROW(פעילות))+1),ROWS($B$3:B63)))&CHAR(10),\"\")","v":""}]
[null,{"$f":"IFERROR(INDEX(פעילות,SMALL(IF(יעד=$B$2,ROW(פעילות)-MIN(ROW(פעילות))+1),ROWS($B$3:B64)))&\" \"&CHAR(10)&(INDEX(תוצאה,SMALL(IF(יעד=$B$2,ROW(תוצאה)-MIN(ROW(תוצאה))+1),ROWS($B$3:B64))))&CHAR(10),\"\")","v":""},null,{"$f":"IFERROR(INDEX(פעילות,SMALL(IF(יעד=$D$2,ROW(פעילות)-MIN(ROW(פעילות))+1),ROWS($B$3:B64)))&CHAR(10),\"\")","v":""},null,{"$f":"IFERROR(INDEX(פעילות,SMALL(IF(יעד=$F$2,ROW(פעילות)-MIN(ROW(פעילות))+1),ROWS($B$3:B64)))&CHAR(10),\"\")","v":""},null,{"$f":"IFERROR(INDEX(פעילות,SMALL(IF(יעד=$H$2,ROW(פעילות)-MIN(ROW(פעילות))+1),ROWS($B$3:B64)))&CHAR(10),\"\")","v":""}]
[null,{"$f":"IFERROR(INDEX(פעילות,SMALL(IF(יעד=$B$2,ROW(פעילות)-MIN(ROW(פעילות))+1),ROWS($B$3:B65)))&\" \"&CHAR(10)&(INDEX(תוצאה,SMALL(IF(יעד=$B$2,ROW(תוצאה)-MIN(ROW(תוצאה))+1),ROWS($B$3:B65))))&CHAR(10),\"\")","v":""},null,{"$f":"IFERROR(INDEX(פעילות,SMALL(IF(יעד=$D$2,ROW(פעילות)-MIN(ROW(פעילות))+1),ROWS($B$3:B65)))&CHAR(10),\"\")","v":""},null,{"$f":"IFERROR(INDEX(פעילות,SMALL(IF(יעד=$F$2,ROW(פעילות)-MIN(ROW(פעילות))+1),ROWS($B$3:B65)))&CHAR(10),\"\")","v":""},null,{"$f":"IFERROR(INDEX(פעילות,SMALL(IF(יעד=$H$2,ROW(פעילות)-MIN(ROW(פעילות))+1),ROWS($B$3:B65)))&CHAR(10),\"\")","v":""}]
[null,{"$f":"IFERROR(INDEX(פעילות,SMALL(IF(יעד=$B$2,ROW(פעילות)-MIN(ROW(פעילות))+1),ROWS($B$3:B66)))&\" \"&CHAR(10)&(INDEX(תוצאה,SMALL(IF(יעד=$B$2,ROW(תוצאה)-MIN(ROW(תוצאה))+1),ROWS($B$3:B66))))&CHAR(10),\"\")","v":""},null,{"$f":"IFERROR(INDEX(פעילות,SMALL(IF(יעד=$D$2,ROW(פעילות)-MIN(ROW(פעילות))+1),ROWS($B$3:B66)))&CHAR(10),\"\")","v":""},null,{"$f":"IFERROR(INDEX(פעילות,SMALL(IF(יעד=$F$2,ROW(פעילות)-MIN(ROW(פעילות))+1),ROWS($B$3:B66)))&CHAR(10),\"\")","v":""},null,{"$f":"IFERROR(INDEX(פעילות,SMALL(IF(יעד=$H$2,ROW(פעילות)-MIN(ROW(פעילות))+1),ROWS($B$3:B66)))&CHAR(10),\"\")","v":""}]
[null,{"$f":"IFERROR(INDEX(פעילות,SMALL(IF(יעד=$B$2,ROW(פעילות)-MIN(ROW(פעילות))+1),ROWS($B$3:B67)))&\" \"&CHAR(10)&(INDEX(תוצאה,SMALL(IF(יעד=$B$2,ROW(תוצאה)-MIN(ROW(תוצאה))+1),ROWS($B$3:B67))))&CHAR(10),\"\")","v":""},null,{"$f":"IFERROR(INDEX(פעילות,SMALL(IF(יעד=$D$2,ROW(פעילות)-MIN(ROW(פעילות))+1),ROWS($B$3:B67)))&CHAR(10),\"\")","v":""},null,{"$f":"IFERROR(INDEX(פעילות,SMALL(IF(יעד=$F$2,ROW(פעילות)-MIN(ROW(פעילות))+1),ROWS($B$3:B67)))&CHAR(10),\"\")","v":""},null,{"$f":"IFERROR(INDEX(פעילות,SMALL(IF(יעד=$H$2,ROW(פעילות)-MIN(ROW(פעילות))+1),ROWS($B$3:B67)))&CHAR(10),\"\")","v":""}]
[null,{"$f":"IFERROR(INDEX(פעילות,SMALL(IF(יעד=$B$2,ROW(פעילות)-MIN(ROW(פעילות))+1),ROWS($B$3:B68)))&\" \"&CHAR(10)&(INDEX(תוצאה,SMALL(IF(יעד=$B$2,ROW(תוצאה)-MIN(ROW(תוצאה))+1),ROWS($B$3:B68))))&CHAR(10),\"\")","v":""},null,{"$f":"IFERROR(INDEX(פעילות,SMALL(IF(יעד=$D$2,ROW(פעילות)-MIN(ROW(פעילות))+1),ROWS($B$3:B68)))&CHAR(10),\"\")","v":""},null,{"$f":"IFERROR(INDEX(פעילות,SMALL(IF(יעד=$F$2,ROW(פעילות)-MIN(ROW(פעילות))+1),ROWS($B$3:B68)))&CHAR(10),\"\")","v":""},null,{"$f":"IFERROR(INDEX(פעילות,SMALL(IF(יעד=$H$2,ROW(פעילות)-MIN(ROW(פעילות))+1),ROWS($B$3:B68)))&CHAR(10),\"\")","v":""}]
[null,{"$f":"IFERROR(INDEX(פעילות,SMALL(IF(יעד=$B$2,ROW(פעילות)-MIN(ROW(פעילות))+1),ROWS($B$3:B69)))&\" \"&CHAR(10)&(INDEX(תוצאה,SMALL(IF(יעד=$B$2,ROW(תוצאה)-MIN(ROW(תוצאה))+1),ROWS($B$3:B69))))&CHAR(10),\"\")","v":""},null,{"$f":"IFERROR(INDEX(פעילות,SMALL(IF(יעד=$D$2,ROW(פעילות)-MIN(ROW(פעילות))+1),ROWS($B$3:B69)))&CHAR(10),\"\")","v":""},null,{"$f":"IFERROR(INDEX(פעילות,SMALL(IF(יעד=$F$2,ROW(פעילות)-MIN(ROW(פעילות))+1),ROWS($B$3:B69)))&CHAR(10),\"\")","v":""},null,{"$f":"IFERROR(INDEX(פעילות,SMALL(IF(יעד=$H$2,ROW(פעילות)-MIN(ROW(פעילות))+1),ROWS($B$3:B69)))&CHAR(10),\"\")","v":""}]
[null,{"$f":"IFERROR(INDEX(פעילות,SMALL(IF(יעד=$B$2,ROW(פעילות)-MIN(ROW(פעילות))+1),ROWS($B$3:B70)))&\" \"&CHAR(10)&(INDEX(תוצאה,SMALL(IF(יעד=$B$2,ROW(תוצאה)-MIN(ROW(תוצאה))+1),ROWS($B$3:B70))))&CHAR(10),\"\")","v":""},null,{"$f":"IFERROR(INDEX(פעילות,SMALL(IF(יעד=$D$2,ROW(פעילות)-MIN(ROW(פעילות))+1),ROWS($B$3:B70)))&CHAR(10),\"\")","v":""},null,{"$f":"IFERROR(INDEX(פעילות,SMALL(IF(יעד=$F$2,ROW(פעילות)-MIN(ROW(פעילות))+1),ROWS($B$3:B70)))&CHAR(10),\"\")","v":""},null,{"$f":"IFERROR(INDEX(פעילות,SMALL(IF(יעד=$H$2,ROW(פעילות)-MIN(ROW(פעילות))+1),ROWS($B$3:B70)))&CHAR(10),\"\")","v":""}]
[null,{"$f":"IFERROR(INDEX(פעילות,SMALL(IF(יעד=$B$2,ROW(פעילות)-MIN(ROW(פעילות))+1),ROWS($B$3:B71)))&\" \"&CHAR(10)&(INDEX(תוצאה,SMALL(IF(יעד=$B$2,ROW(תוצאה)-MIN(ROW(תוצאה))+1),ROWS($B$3:B71))))&CHAR(10),\"\")","v":""},null,{"$f":"IFERROR(INDEX(פעילות,SMALL(IF(יעד=$D$2,ROW(פעילות)-MIN(ROW(פעילות))+1),ROWS($B$3:B71)))&CHAR(10),\"\")","v":""},null,{"$f":"IFERROR(INDEX(פעילות,SMALL(IF(יעד=$F$2,ROW(פעילות)-MIN(ROW(פעילות))+1),ROWS($B$3:B71)))&CHAR(10),\"\")","v":""},null,{"$f":"IFERROR(INDEX(פעילות,SMALL(IF(יעד=$H$2,ROW(פעילות)-MIN(ROW(פעילות))+1),ROWS($B$3:B71)))&CHAR(10),\"\")","v":""}]
[null,{"$f":"IFERROR(INDEX(פעילות,SMALL(IF(יעד=$B$2,ROW(פעילות)-MIN(ROW(פעילות))+1),ROWS($B$3:B72)))&\" \"&CHAR(10)&(INDEX(תוצאה,SMALL(IF(יעד=$B$2,ROW(תוצאה)-MIN(ROW(תוצאה))+1),ROWS($B$3:B72))))&CHAR(10),\"\")","v":""},null,{"$f":"IFERROR(INDEX(פעילות,SMALL(IF(יעד=$D$2,ROW(פעילות)-MIN(ROW(פעילות))+1),ROWS($B$3:B72)))&CHAR(10),\"\")","v":""},null,{"$f":"IFERROR(INDEX(פעילות,SMALL(IF(יעד=$F$2,ROW(פעילות)-MIN(ROW(פעילות))+1),ROWS($B$3:B72)))&CHAR(10),\"\")","v":""},null,{"$f":"IFERROR(INDEX(פעילות,SMALL(IF(יעד=$H$2,ROW(פעילות)-MIN(ROW(פעילות))+1),ROWS($B$3:B72)))&CHAR(10),\"\")","v":""}]
[null,{"$f":"IFERROR(INDEX(פעילות,SMALL(IF(יעד=$B$2,ROW(פעילות)-MIN(ROW(פעילות))+1),ROWS($B$3:B73)))&\" \"&CHAR(10)&(INDEX(תוצאה,SMALL(IF(יעד=$B$2,ROW(תוצאה)-MIN(ROW(תוצאה))+1),ROWS($B$3:B73))))&CHAR(10),\"\")","v":""},null,{"$f":"IFERROR(INDEX(פעילות,SMALL(IF(יעד=$D$2,ROW(פעילות)-MIN(ROW(פעילות))+1),ROWS($B$3:B73)))&CHAR(10),\"\")","v":""},null,{"$f":"IFERROR(INDEX(פעילות,SMALL(IF(יעד=$F$2,ROW(פעילות)-MIN(ROW(פעילות))+1),ROWS($B$3:B73)))&CHAR(10),\"\")","v":""},null,{"$f":"IFERROR(INDEX(פעילות,SMALL(IF(יעד=$H$2,ROW(פעילות)-MIN(ROW(פעילות))+1),ROWS($B$3:B73)))&CHAR(10),\"\")","v":""}]
[null,{"$f":"IFERROR(INDEX(פעילות,SMALL(IF(יעד=$B$2,ROW(פעילות)-MIN(ROW(פעילות))+1),ROWS($B$3:B74)))&\" \"&CHAR(10)&(INDEX(תוצאה,SMALL(IF(יעד=$B$2,ROW(תוצאה)-MIN(ROW(תוצאה))+1),ROWS($B$3:B74))))&CHAR(10),\"\")","v":""},null,{"$f":"IFERROR(INDEX(פעילות,SMALL(IF(יעד=$D$2,ROW(פעילות)-MIN(ROW(פעילות))+1),ROWS($B$3:B74)))&CHAR(10),\"\")","v":""},null,{"$f":"IFERROR(INDEX(פעילות,SMALL(IF(יעד=$F$2,ROW(פעילות)-MIN(ROW(פעילות))+1),ROWS($B$3:B74)))&CHAR(10),\"\")","v":""},null,{"$f":"IFERROR(INDEX(פעילות,SMALL(IF(יעד=$H$2,ROW(פעילות)-MIN(ROW(פעילות))+1),ROWS($B$3:B74)))&CHAR(10),\"\")","v":""}]
[null,{"$f":"IFERROR(INDEX(פעילות,SMALL(IF(יעד=$B$2,ROW(פעילות)-MIN(ROW(פעילות))+1),ROWS($B$3:B75)))&\" \"&CHAR(10)&(INDEX(תוצאה,SMALL(IF(יעד=$B$2,ROW(תוצאה)-MIN(ROW(תוצאה))+1),ROWS($B$3:B75))))&CHAR(10),\"\")","v":""},null,{"$f":"IFERROR(INDEX(פעילות,SMALL(IF(יעד=$D$2,ROW(פעילות)-MIN(ROW(פעילות))+1),ROWS($B$3:B75)))&CHAR(10),\"\")","v":""},null,{"$f":"IFERROR(INDEX(פעילות,SMALL(IF(יעד=$F$2,ROW(פעילות)-MIN(ROW(פעילות))+1),ROWS($B$3:B75)))&CHAR(10),\"\")","v":""},null,{"$f":"IFERROR(INDEX(פעילות,SMALL(IF(יעד=$H$2,ROW(פעילות)-MIN(ROW(פעילות))+1),ROWS($B$3:B75)))&CHAR(10),\"\")","v":""}]
[null,{"$f":"IFERROR(INDEX(פעילות,SMALL(IF(יעד=$B$2,ROW(פעילות)-MIN(ROW(פעילות))+1),ROWS($B$3:B76)))&\" \"&CHAR(10)&(INDEX(תוצאה,SMALL(IF(יעד=$B$2,ROW(תוצאה)-MIN(ROW(תוצאה))+1),ROWS($B$3:B76))))&CHAR(10),\"\")","v":""},null,{"$f":"IFERROR(INDEX(פעילות,SMALL(IF(יעד=$D$2,ROW(פעילות)-MIN(ROW(פעילות))+1),ROWS($B$3:B76)))&CHAR(10),\"\")","v":""},null,{"$f":"IFERROR(INDEX(פעילות,SMALL(IF(יעד=$F$2,ROW(פעילות)-MIN(ROW(פעילות))+1),ROWS($B$3:B76)))&CHAR(10),\"\")","v":""},null,{"$f":"IFERROR(INDEX(פעילות,SMALL(IF(יעד=$H$2,ROW(פעילות)-MIN(ROW(פעילות))+1),ROWS($B$3:B76)))&CHAR(10),\"\")","v":""}]
[null,{"$f":"IFERROR(INDEX(פעילות,SMALL(IF(יעד=$B$2,ROW(פעילות)-MIN(ROW(פעילות))+1),ROWS($B$3:B77)))&\" \"&CHAR(10)&(INDEX(תוצאה,SMALL(IF(יעד=$B$2,ROW(תוצאה)-MIN(ROW(תוצאה))+1),ROWS($B$3:B77))))&CHAR(10),\"\")","v":""},null,{"$f":"IFERROR(INDEX(פעילות,SMALL(IF(יעד=$D$2,ROW(פעילות)-MIN(ROW(פעילות))+1),ROWS($B$3:B77)))&CHAR(10),\"\")","v":""},null,{"$f":"IFERROR(INDEX(פעילות,SMALL(IF(יעד=$F$2,ROW(פעילות)-MIN(ROW(פעילות))+1),ROWS($B$3:B77)))&CHAR(10),\"\")","v":""},null,{"$f":"IFERROR(INDEX(פעילות,SMALL(IF(יעד=$H$2,ROW(פעילות)-MIN(ROW(פעילות))+1),ROWS($B$3:B77)))&CHAR(10),\"\")","v":""}]
[null,{"$f":"IFERROR(INDEX(פעילות,SMALL(IF(יעד=$B$2,ROW(פעילות)-MIN(ROW(פעילות))+1),ROWS($B$3:B78)))&\" \"&CHAR(10)&(INDEX(תוצאה,SMALL(IF(יעד=$B$2,ROW(תוצאה)-MIN(ROW(תוצאה))+1),ROWS($B$3:B78))))&CHAR(10),\"\")","v":""},null,{"$f":"IFERROR(INDEX(פעילות,SMALL(IF(יעד=$D$2,ROW(פעילות)-MIN(ROW(פעילות))+1),ROWS($B$3:B78)))&CHAR(10),\"\")","v":""},null,{"$f":"IFERROR(INDEX(פעילות,SMALL(IF(יעד=$F$2,ROW(פעילות)-MIN(ROW(פעילות))+1),ROWS($B$3:B78)))&CHAR(10),\"\")","v":""},null,{"$f":"IFERROR(INDEX(פעילות,SMALL(IF(יעד=$H$2,ROW(פעילות)-MIN(ROW(פעילות))+1),ROWS($B$3:B78)))&CHAR(10),\"\")","v":""}]
[null,{"$f":"IFERROR(INDEX(פעילות,SMALL(IF(יעד=$B$2,ROW(פעילות)-MIN(ROW(פעילות))+1),ROWS($B$3:B79)))&\" \"&CHAR(10)&(INDEX(תוצאה,SMALL(IF(יעד=$B$2,ROW(תוצאה)-MIN(ROW(תוצאה))+1),ROWS($B$3:B79))))&CHAR(10),\"\")","v":""},null,{"$f":"IFERROR(INDEX(פעילות,SMALL(IF(יעד=$D$2,ROW(פעילות)-MIN(ROW(פעילות))+1),ROWS($B$3:B79)))&CHAR(10),\"\")","v":""},null,{"$f":"IFERROR(INDEX(פעילות,SMALL(IF(יעד=$F$2,ROW(פעילות)-MIN(ROW(פעילות))+1),ROWS($B$3:B79)))&CHAR(10),\"\")","v":""},null,{"$f":"IFERROR(INDEX(פעילות,SMALL(IF(יעד=$H$2,ROW(פעילות)-MIN(ROW(פעילות))+1),ROWS($B$3:B79)))&CHAR(10),\"\")","v":""}]
[null,{"$f":"IFERROR(INDEX(פעילות,SMALL(IF(יעד=$B$2,ROW(פעילות)-MIN(ROW(פעילות))+1),ROWS($B$3:B80)))&\" \"&CHAR(10)&(INDEX(תוצאה,SMALL(IF(יעד=$B$2,ROW(תוצאה)-MIN(ROW(תוצאה))+1),ROWS($B$3:B80))))&CHAR(10),\"\")","v":""},null,{"$f":"IFERROR(INDEX(פעילות,SMALL(IF(יעד=$D$2,ROW(פעילות)-MIN(ROW(פעילות))+1),ROWS($B$3:B80)))&CHAR(10),\"\")","v":""},null,{"$f":"IFERROR(INDEX(פעילות,SMALL(IF(יעד=$F$2,ROW(פעילות)-MIN(ROW(פעילות))+1),ROWS($B$3:B80)))&CHAR(10),\"\")","v":""},null,{"$f":"IFERROR(INDEX(פעילות,SMALL(IF(יעד=$H$2,ROW(פעילות)-MIN(ROW(פעילות))+1),ROWS($B$3:B80)))&CHAR(10),\"\")","v":""}]
[null,{"$f":"IFERROR(INDEX(פעילות,SMALL(IF(יעד=$B$2,ROW(פעילות)-MIN(ROW(פעילות))+1),ROWS($B$3:B81)))&\" \"&CHAR(10)&(INDEX(תוצאה,SMALL(IF(יעד=$B$2,ROW(תוצאה)-MIN(ROW(תוצאה))+1),ROWS($B$3:B81))))&CHAR(10),\"\")","v":""},null,{"$f":"IFERROR(INDEX(פעילות,SMALL(IF(יעד=$D$2,ROW(פעילות)-MIN(ROW(פעילות))+1),ROWS($B$3:B81)))&CHAR(10),\"\")","v":""},null,{"$f":"IFERROR(INDEX(פעילות,SMALL(IF(יעד=$F$2,ROW(פעילות)-MIN(ROW(פעילות))+1),ROWS($B$3:B81)))&CHAR(10),\"\")","v":""},null,{"$f":"IFERROR(INDEX(פעילות,SMALL(IF(יעד=$H$2,ROW(פעילות)-MIN(ROW(פעילות))+1),ROWS($B$3:B81)))&CHAR(10),\"\")","v":""}]
[null,{"$f":"IFERROR(INDEX(פעילות,SMALL(IF(יעד=$B$2,ROW(פעילות)-MIN(ROW(פעילות))+1),ROWS($B$3:B82)))&\" \"&CHAR(10)&(INDEX(תוצאה,SMALL(IF(יעד=$B$2,ROW(תוצאה)-MIN(ROW(תוצאה))+1),ROWS($B$3:B82))))&CHAR(10),\"\")","v":""},null,{"$f":"IFERROR(INDEX(פעילות,SMALL(IF(יעד=$D$2,ROW(פעילות)-MIN(ROW(פעילות))+1),ROWS($B$3:B82)))&CHAR(10),\"\")","v":""},null,{"$f":"IFERROR(INDEX(פעילות,SMALL(IF(יעד=$F$2,ROW(פעילות)-MIN(ROW(פעילות))+1),ROWS($B$3:B82)))&CHAR(10),\"\")","v":""},null,{"$f":"IFERROR(INDEX(פעילות,SMALL(IF(יעד=$H$2,ROW(פעילות)-MIN(ROW(פעילות))+1),ROWS($B$3:B82)))&CHAR(10),\"\")","v":""}]
[null,{"$f":"IFERROR(INDEX(פעילות,SMALL(IF(יעד=$B$2,ROW(פעילות)-MIN(ROW(פעילות))+1),ROWS($B$3:B83)))&\" \"&CHAR(10)&(INDEX(תוצאה,SMALL(IF(יעד=$B$2,ROW(תוצאה)-MIN(ROW(תוצאה))+1),ROWS($B$3:B83))))&CHAR(10),\"\")","v":""},null,{"$f":"IFERROR(INDEX(פעילות,SMALL(IF(יעד=$D$2,ROW(פעילות)-MIN(ROW(פעילות))+1),ROWS($B$3:B83)))&CHAR(10),\"\")","v":""},null,{"$f":"IFERROR(INDEX(פעילות,SMALL(IF(יעד=$F$2,ROW(פעילות)-MIN(ROW(פעילות))+1),ROWS($B$3:B83)))&CHAR(10),\"\")","v":""},null,{"$f":"IFERROR(INDEX(פעילות,SMALL(IF(יעד=$H$2,ROW(פעילות)-MIN(ROW(פעילות))+1),ROWS($B$3:B83)))&CHAR(10),\"\")","v":""}]
[null,{"$f":"IFERROR(INDEX(פעילות,SMALL(IF(יעד=$B$2,ROW(פעילות)-MIN(ROW(פעילות))+1),ROWS($B$3:B84)))&\" \"&CHAR(10)&(INDEX(תוצאה,SMALL(IF(יעד=$B$2,ROW(תוצאה)-MIN(ROW(תוצאה))+1),ROWS($B$3:B84))))&CHAR(10),\"\")","v":""},null,{"$f":"IFERROR(INDEX(פעילות,SMALL(IF(יעד=$D$2,ROW(פעילות)-MIN(ROW(פעילות))+1),ROWS($B$3:B84)))&CHAR(10),\"\")","v":""},null,{"$f":"IFERROR(INDEX(פעילות,SMALL(IF(יעד=$F$2,ROW(פעילות)-MIN(ROW(פעילות))+1),ROWS($B$3:B84)))&CHAR(10),\"\")","v":""},null,{"$f":"IFERROR(INDEX(פעילות,SMALL(IF(יעד=$H$2,ROW(פעילות)-MIN(ROW(פעילות))+1),ROWS($B$3:B84)))&CHAR(10),\"\")","v":""}]
[null,{"$f":"IFERROR(INDEX(פעילות,SMALL(IF(יעד=$B$2,ROW(פעילות)-MIN(ROW(פעילות))+1),ROWS($B$3:B85)))&\" \"&CHAR(10)&(INDEX(תוצאה,SMALL(IF(יעד=$B$2,ROW(תוצאה)-MIN(ROW(תוצאה))+1),ROWS($B$3:B85))))&CHAR(10),\"\")","v":""},null,{"$f":"IFERROR(INDEX(פעילות,SMALL(IF(יעד=$D$2,ROW(פעילות)-MIN(ROW(פעילות))+1),ROWS($B$3:B85)))&CHAR(10),\"\")","v":""},null,{"$f":"IFERROR(INDEX(פעילות,SMALL(IF(יעד=$F$2,ROW(פעילות)-MIN(ROW(פעילות))+1),ROWS($B$3:B85)))&CHAR(10),\"\")","v":""},null,{"$f":"IFERROR(INDEX(פעילות,SMALL(IF(יעד=$H$2,ROW(פעילות)-MIN(ROW(פעילות))+1),ROWS($B$3:B85)))&CHAR(10),\"\")","v":""}]
[null,{"$f":"IFERROR(INDEX(פעילות,SMALL(IF(יעד=$B$2,ROW(פעילות)-MIN(ROW(פעילות))+1),ROWS($B$3:B86)))&\" \"&CHAR(10)&(INDEX(תוצאה,SMALL(IF(יעד=$B$2,ROW(תוצאה)-MIN(ROW(תוצאה))+1),ROWS($B$3:B86))))&CHAR(10),\"\")","v":""},null,{"$f":"IFERROR(INDEX(פעילות,SMALL(IF(יעד=$D$2,ROW(פעילות)-MIN(ROW(פעילות))+1),ROWS($B$3:B86)))&CHAR(10),\"\")","v":""},null,{"$f":"IFERROR(INDEX(פעילות,SMALL(IF(יעד=$F$2,ROW(פעילות)-MIN(ROW(פעילות))+1),ROWS($B$3:B86)))&CHAR(10),\"\")","v":""},null,{"$f":"IFERROR(INDEX(פעילות,SMALL(IF(יעד=$H$2,ROW(פעילות)-MIN(ROW(פעילות))+1),ROWS($B$3:B86)))&CHAR(10),\"\")","v":""}]
[null,{"$f":"IFERROR(INDEX(פעילות,SMALL(IF(יעד=$B$2,ROW(פעילות)-MIN(ROW(פעילות))+1),ROWS($B$3:B87)))&\" \"&CHAR(10)&(INDEX(תוצאה,SMALL(IF(יעד=$B$2,ROW(תוצאה)-MIN(ROW(תוצאה))+1),ROWS($B$3:B87))))&CHAR(10),\"\")","v":""},null,{"$f":"IFERROR(INDEX(פעילות,SMALL(IF(יעד=$D$2,ROW(פעילות)-MIN(ROW(פעילות))+1),ROWS($B$3:B87)))&CHAR(10),\"\")","v":""},null,{"$f":"IFERROR(INDEX(פעילות,SMALL(IF(יעד=$F$2,ROW(פעילות)-MIN(ROW(פעילות))+1),ROWS($B$3:B87)))&CHAR(10),\"\")","v":""},null,{"$f":"IFERROR(INDEX(פעילות,SMALL(IF(יעד=$H$2,ROW(פעילות)-MIN(ROW(פעילות))+1),ROWS($B$3:B87)))&CHAR(10),\"\")","v":""}]
[null,{"$f":"IFERROR(INDEX(פעילות,SMALL(IF(יעד=$B$2,ROW(פעילות)-MIN(ROW(פעילות))+1),ROWS($B$3:B88)))&\" \"&CHAR(10)&(INDEX(תוצאה,SMALL(IF(יעד=$B$2,ROW(תוצאה)-MIN(ROW(תוצאה))+1),ROWS($B$3:B88))))&CHAR(10),\"\")","v":""},null,{"$f":"IFERROR(INDEX(פעילות,SMALL(IF(יעד=$D$2,ROW(פעילות)-MIN(ROW(פעילות))+1),ROWS($B$3:B88)))&CHAR(10),\"\")","v":""},null,{"$f":"IFERROR(INDEX(פעילות,SMALL(IF(יעד=$F$2,ROW(פעילות)-MIN(ROW(פעילות))+1),ROWS($B$3:B88)))&CHAR(10),\"\")","v":""},null,{"$f":"IFERROR(INDEX(פעילות,SMALL(IF(יעד=$H$2,ROW(פעילות)-MIN(ROW(פעילות))+1),ROWS($B$3:B88)))&CHAR(10),\"\")","v":""}]
[null,{"$f":"IFERROR(INDEX(פעילות,SMALL(IF(יעד=$B$2,ROW(פעילות)-MIN(ROW(פעילות))+1),ROWS($B$3:B89)))&\" \"&CHAR(10)&(INDEX(תוצאה,SMALL(IF(יעד=$B$2,ROW(תוצאה)-MIN(ROW(תוצאה))+1),ROWS($B$3:B89))))&CHAR(10),\"\")","v":""},null,{"$f":"IFERROR(INDEX(פעילות,SMALL(IF(יעד=$D$2,ROW(פעילות)-MIN(ROW(פעילות))+1),ROWS($B$3:B89)))&CHAR(10),\"\")","v":""},null,{"$f":"IFERROR(INDEX(פעילות,SMALL(IF(יעד=$F$2,ROW(פעילות)-MIN(ROW(פעילות))+1),ROWS($B$3:B89)))&CHAR(10),\"\")","v":""},null,{"$f":"IFERROR(INDEX(פעילות,SMALL(IF(יעד=$H$2,ROW(פעילות)-MIN(ROW(פעילות))+1),ROWS($B$3:B89)))&CHAR(10),\"\")","v":""}]
[null,{"$f":"IFERROR(INDEX(פעילות,SMALL(IF(יעד=$B$2,ROW(פעילות)-MIN(ROW(פעילות))+1),ROWS($B$3:B90)))&\" \"&CHAR(10)&(INDEX(תוצאה,SMALL(IF(יעד=$B$2,ROW(תוצאה)-MIN(ROW(תוצאה))+1),ROWS($B$3:B90))))&CHAR(10),\"\")","v":""},null,{"$f":"IFERROR(INDEX(פעילות,SMALL(IF(יעד=$D$2,ROW(פעילות)-MIN(ROW(פעילות))+1),ROWS($B$3:B90)))&CHAR(10),\"\")","v":""},null,{"$f":"IFERROR(INDEX(פעילות,SMALL(IF(יעד=$F$2,ROW(פעילות)-MIN(ROW(פעילות))+1),ROWS($B$3:B90)))&CHAR(10),\"\")","v":""},null,{"$f":"IFERROR(INDEX(פעילות,SMALL(IF(יעד=$H$2,ROW(פעילות)-MIN(ROW(פעילות))+1),ROWS($B$3:B90)))&CHAR(10),\"\")","v":""}]
[null,{"$f":"IFERROR(INDEX(פעילות,SMALL(IF(יעד=$B$2,ROW(פעילות)-MIN(ROW(פעילות))+1),ROWS($B$3:B91)))&\" \"&CHAR(10)&(INDEX(תוצאה,SMALL(IF(יעד=$B$2,ROW(תוצאה)-MIN(ROW(תוצאה))+1),ROWS($B$3:B91))))&CHAR(10),\"\")","v":""},null,{"$f":"IFERROR(INDEX(פעילות,SMALL(IF(יעד=$D$2,ROW(פעילות)-MIN(ROW(פעילות))+1),ROWS($B$3:B91)))&CHAR(10),\"\")","v":""},null,{"$f":"IFERROR(INDEX(פעילות,SMALL(IF(יעד=$F$2,ROW(פעילות)-MIN(ROW(פעילות))+1),ROWS($B$3:B91)))&CHAR(10),\"\")","v":""},null,{"$f":"IFERROR(INDEX(פעילות,SMALL(IF(יעד=$H$2,ROW(פעילות)-MIN(ROW(פעילות))+1),ROWS($B$3:B91)))&CHAR(10),\"\")","v":""}]
[null,{"$f":"IFERROR(INDEX(פעילות,SMALL(IF(יעד=$B$2,ROW(פעילות)-MIN(ROW(פעילות))+1),ROWS($B$3:B92)))&\" \"&CHAR(10)&(INDEX(תוצאה,SMALL(IF(יעד=$B$2,ROW(תוצאה)-MIN(ROW(תוצאה))+1),ROWS($B$3:B92))))&CHAR(10),\"\")","v":""},null,{"$f":"IFERROR(INDEX(פעילות,SMALL(IF(יעד=$D$2,ROW(פעילות)-MIN(ROW(פעילות))+1),ROWS($B$3:B92)))&CHAR(10),\"\")","v":""},null,{"$f":"IFERROR(INDEX(פעילות,SMALL(IF(יעד=$F$2,ROW(פעילות)-MIN(ROW(פעילות))+1),ROWS($B$3:B92)))&CHAR(10),\"\")","v":""},null,{"$f":"IFERROR(INDEX(פעילות,SMALL(IF(יעד=$H$2,ROW(פעילות)-MIN(ROW(פעילות))+1),ROWS($B$3:B92)))&CHAR(10),\"\")","v":""}]
[null,{"$f":"IFERROR(INDEX(פעילות,SMALL(IF(יעד=$B$2,ROW(פעילות)-MIN(ROW(פעילות))+1),ROWS($B$3:B93)))&\" \"&CHAR(10)&(INDEX(תוצאה,SMALL(IF(יעד=$B$2,ROW(תוצאה)-MIN(ROW(תוצאה))+1),ROWS($B$3:B93))))&CHAR(10),\"\")","v":""},null,{"$f":"IFERROR(INDEX(פעילות,SMALL(IF(יעד=$D$2,ROW(פעילות)-MIN(ROW(פעילות))+1),ROWS($B$3:B93)))&CHAR(10),\"\")","v":""},null,{"$f":"IFERROR(INDEX(פעילות,SMALL(IF(יעד=$F$2,ROW(פעילות)-MIN(ROW(פעילות))+1),ROWS($B$3:B93)))&CHAR(10),\"\")","v":""},null,{"$f":"IFERROR(INDEX(פעילות,SMALL(IF(יעד=$H$2,ROW(פעילות)-MIN(ROW(פעילות))+1),ROWS($B$3:B93)))&CHAR(10),\"\")","v":""}]
[null,{"$f":"IFERROR(INDEX(פעילות,SMALL(IF(יעד=$B$2,ROW(פעילות)-MIN(ROW(פעילות))+1),ROWS($B$3:B94)))&\" \"&CHAR(10)&(INDEX(תוצאה,SMALL(IF(יעד=$B$2,ROW(תוצאה)-MIN(ROW(תוצאה))+1),ROWS($B$3:B94))))&CHAR(10),\"\")","v":""},null,{"$f":"IFERROR(INDEX(פעילות,SMALL(IF(יעד=$D$2,ROW(פעילות)-MIN(ROW(פעילות))+1),ROWS($B$3:B94)))&CHAR(10),\"\")","v":""},null,{"$f":"IFERROR(INDEX(פעילות,SMALL(IF(יעד=$F$2,ROW(פעילות)-MIN(ROW(פעילות))+1),ROWS($B$3:B94)))&CHAR(10),\"\")","v":""},null,{"$f":"IFERROR(INDEX(פעילות,SMALL(IF(יעד=$H$2,ROW(פעילות)-MIN(ROW(פעילות))+1),ROWS($B$3:B94)))&CHAR(10),\"\")","v":""}]
[null,{"$f":"IFERROR(INDEX(פעילות,SMALL(IF(יעד=$B$2,ROW(פעילות)-MIN(ROW(פעילות))+1),ROWS($B$3:B95)))&\" \"&CHAR(10)&(INDEX(תוצאה,SMALL(IF(יעד=$B$2,ROW(תוצאה)-MIN(ROW(תוצאה))+1),ROWS($B$3:B95))))&CHAR(10),\"\")","v":""},null,{"$f":"IFERROR(INDEX(פעילות,SMALL(IF(יעד=$D$2,ROW(פעילות)-MIN(ROW(פעילות))+1),ROWS($B$3:B95)))&CHAR(10),\"\")","v":""},null,{"$f":"IFERROR(INDEX(פעילות,SMALL(IF(יעד=$F$2,ROW(פעילות)-MIN(ROW(פעילות))+1),ROWS($B$3:B95)))&CHAR(10),\"\")","v":""},null,{"$f":"IFERROR(INDEX(פעילות,SMALL(IF(יעד=$H$2,ROW(פעילות)-MIN(ROW(פעילות))+1),ROWS($B$3:B95)))&CHAR(10),\"\")","v":""}]
[null,{"$f":"IFERROR(INDEX(פעילות,SMALL(IF(יעד=$B$2,ROW(פעילות)-MIN(ROW(פעילות))+1),ROWS($B$3:B96)))&\" \"&CHAR(10)&(INDEX(תוצאה,SMALL(IF(יעד=$B$2,ROW(תוצאה)-MIN(ROW(תוצאה))+1),ROWS($B$3:B96))))&CHAR(10),\"\")","v":""},null,{"$f":"IFERROR(INDEX(פעילות,SMALL(IF(יעד=$D$2,ROW(פעילות)-MIN(ROW(פעילות))+1),ROWS($B$3:B96)))&CHAR(10),\"\")","v":""},null,{"$f":"IFERROR(INDEX(פעילות,SMALL(IF(יעד=$F$2,ROW(פעילות)-MIN(ROW(פעילות))+1),ROWS($B$3:B96)))&CHAR(10),\"\")","v":""},null,{"$f":"IFERROR(INDEX(פעילות,SMALL(IF(יעד=$H$2,ROW(פעילות)-MIN(ROW(פעילות))+1),ROWS($B$3:B96)))&CHAR(10),\"\")","v":""}]
[null,{"$f":"IFERROR(INDEX(פעילות,SMALL(IF(יעד=$B$2,ROW(פעילות)-MIN(ROW(פעילות))+1),ROWS($B$3:B97)))&\" \"&CHAR(10)&(INDEX(תוצאה,SMALL(IF(יעד=$B$2,ROW(תוצאה)-MIN(ROW(תוצאה))+1),ROWS($B$3:B97))))&CHAR(10),\"\")","v":""},null,{"$f":"IFERROR(INDEX(פעילות,SMALL(IF(יעד=$D$2,ROW(פעילות)-MIN(ROW(פעילות))+1),ROWS($B$3:B97)))&CHAR(10),\"\")","v":""},null,{"$f":"IFERROR(INDEX(פעילות,SMALL(IF(יעד=$F$2,ROW(פעילות)-MIN(ROW(פעילות))+1),ROWS($B$3:B97)))&CHAR(10),\"\")","v":""},null,{"$f":"IFERROR(INDEX(פעילות,SMALL(IF(יעד=$H$2,ROW(פעילות)-MIN(ROW(פעילות))+1),ROWS($B$3:B97)))&CHAR(10),\"\")","v":""}]
[null,{"$f":"IFERROR(INDEX(פעילות,SMALL(IF(יעד=$B$2,ROW(פעילות)-MIN(ROW(פעילות))+1),ROWS($B$3:B98)))&\" \"&CHAR(10)&(INDEX(תוצאה,SMALL(IF(יעד=$B$2,ROW(תוצאה)-MIN(ROW(תוצאה))+1),ROWS($B$3:B98))))&CHAR(10),\"\")","v":""},null,{"$f":"IFERROR(INDEX(פעילות,SMALL(IF(יעד=$D$2,ROW(פעילות)-MIN(ROW(פעילות))+1),ROWS($B$3:B98)))&CHAR(10),\"\")","v":""},null,{"$f":"IFERROR(INDEX(פעילות,SMALL(IF(יעד=$F$2,ROW(פעילות)-MIN(ROW(פעילות))+1),ROWS($B$3:B98)))&CHAR(10),\"\")","v":""},null,{"$f":"IFERROR(INDEX(פעילות,SMALL(IF(יעד=$H$2,ROW(פעילות)-MIN(ROW(פעילות))+1),ROWS($B$3:B98)))&CHAR(10),\"\")","v":""}]
[null,{"$f":"IFERROR(INDEX(פעילות,SMALL(IF(יעד=$B$2,ROW(פעילות)-MIN(ROW(פעילות))+1),ROWS($B$3:B99)))&\" \"&CHAR(10)&(INDEX(תוצאה,SMALL(IF(יעד=$B$2,ROW(תוצאה)-MIN(ROW(תוצאה))+1),ROWS($B$3:B99))))&CHAR(10),\"\")","v":""},null,{"$f":"IFERROR(INDEX(פעילות,SMALL(IF(יעד=$D$2,ROW(פעילות)-MIN(ROW(פעילות))+1),ROWS($B$3:B99)))&CHAR(10),\"\")","v":""},null,{"$f":"IFERROR(INDEX(פעילות,SMALL(IF(יעד=$F$2,ROW(פעילות)-MIN(ROW(פעילות))+1),ROWS($B$3:B99)))&CHAR(10),\"\")","v":""},null,{"$f":"IFERROR(INDEX(פעילות,SMALL(IF(יעד=$H$2,ROW(פעילות)-MIN(ROW(פעילות))+1),ROWS($B$3:B99)))&CHAR(10),\"\")","v":""}]
[null,{"$f":"IFERROR(INDEX(פעילות,SMALL(IF(יעד=$B$2,ROW(פעילות)-MIN(ROW(פעילות))+1),ROWS($B$3:B100)))&\" \"&CHAR(10)&(INDEX(תוצאה,SMALL(IF(יעד=$B$2,ROW(תוצאה)-MIN(ROW(תוצאה))+1),ROWS($B$3:B100))))&CHAR(10),\"\")","v":""},null,{"$f":"IFERROR(INDEX(פעילות,SMALL(IF(יעד=$D$2,ROW(פעילות)-MIN(ROW(פעילות))+1),ROWS($B$3:B100)))&CHAR(10),\"\")","v":""},null,{"$f":"IFERROR(INDEX(פעילות,SMALL(IF(יעד=$F$2,ROW(פעילות)-MIN(ROW(פעילות))+1),ROWS($B$3:B100)))&CHAR(10),\"\")","v":""},null,{"$f":"IFERROR(INDEX(פעילות,SMALL(IF(יעד=$H$2,ROW(פעילות)-MIN(ROW(פעילות))+1),ROWS($B$3:B100)))&CHAR(10),\"\")","v":""}]

{"sheet":"אודות","index":2,"n_rows":6,"n_cols":1,"rows_kept":6}
["אודות חוברת עבודה זו"]
["מדריך לקוראי מסך"]
["חוברת עבודה זו כוללת 3 גליונות עבודה. \n\nנתוני מפת הדרכים\nמפת דרכים גמישה\nאודות\n\nההוראות עבור כל גליון עבודה מפורטות בעמודה A החל מתא A1 של כל גליון עבודה. הן נכתבו עם טקסט מוסתר. כל שלב מנחה אותך לגבי המידע בשורה זו. כל אחד מהשלבים הבאים ממשיך בתא A2,‏ A3 וכן הלאה, אלא אם ניתנה הוראה אחרת באופן מפורש. לדוגמה, טקסט ההוראה עשוי להיות \"המשך לתא A6\" עבור השלב הבא. \n\nטקסט מוסתר לא יודפס.\n\nכדי להסיר הוראות אלה מגליון עבודה כלשהו, פשוט מחק את עמודה A.\n"]
["אודות חוברת עבודה זו"]
["הזן מידע על אבן הדרך בגליון העבודה 'נתוני מפת הדרכים'. הקפד למיין לפי עדיפות ולאחר מכן לפי אבן דרך כדי ללכוד את התצוגה 'הושלם', 'נוכחי', 'טווח קצר' ו'בעתיד' בסדר עדיפות יורד - כאשר הפריטים הנמצאים בסדר העדיפות הגבוה ביותר מופיעים למעלה. מפת הדרכים בגליון העבודה 'מפת דרכים גמישה' מתעדכנת באופן אוטומטי.\n"]
["זוהי ההוראה האחרונה בגליון עבודה זה."]